{"text_format":"1","workbook":"xlsx","n_sheets":11,"sheets":["■利用契約書","■検収完了書","ワークシート","所属部課","価格表","価格表（割賦）","見積書(総額表示有-作業用)","決裁区分","見積書(総額表示無-作業用)","デモ機手配依頼書","デモ機回答書"],"not_rendered":{"charts":0,"images":0,"macros":1,"external_links":0,"defined_names":103,"comments":2,"pivot_tables":0},"unopened":[],"bounds":{"document_bytes":16777216,"sheet_cells":100000,"rows_first":2000,"rows_last":500,"rows_between":2000,"halvings":0,"cell_chars":16384,"cell_head_chars":4096},"cells_cut":0,"cells_raw":0,"read":"whole","date_system":"1900"}

{"sheet":"■利用契約書","index":0,"n_rows":88,"n_cols":112,"rows_kept":88,"cut":false,"hidden":true,"merged":[[1,0,19,1],[1,2,2,12],[1,13,2,17],[1,18,2,44],[1,45,2,49],[1,50,2,55],[2,61,3,65],[3,2,6,12],[3,13,6,55],[4,61,5,65],[7,2,10,12],[7,13,8,17],[7,18,8,22],[7,23,8,27],[7,28,8,32],[7,33,8,37],[11,2,14,12],[11,13,12,17],[11,50,12,55],[13,13,14,17],[0,61,1,65],[11,18,12,22],[11,23,12,27],[11,28,12,32],[19,102,20,110],[19,111,20,111],[0,105,1,116],[9,91,10,93],[9,94,12,111],[7,89,8,90],[9,63,10,65],[13,94,14,109],[14,63,15,65],[14,82,15,83],[14,91,15,93],[7,61,8,63],[15,94,16,101],[15,102,16,110],[0,67,3,99],[9,13,10,17],[9,18,10,22],[9,23,10,27],[9,28,10,32],[9,33,10,37],[7,38,10,55],[0,101,1,104],[15,111,16,111],[24,23,25,27],[24,28,24,55],[25,28,31,55],[11,33,12,37],[11,38,12,43],[11,44,12,49],[13,18,14,22],[13,23,14,27],[13,28,14,32],[13,33,14,37],[13,38,14,43],[13,44,14,49],[13,50,14,55],[18,91,19,93],[19,61,20,68],[19,94,20,101],[32,28,33,32],[26,4,27,12],[26,13,27,17],[40,4,41,12],[34,28,35,32],[26,63,27,65],[26,82,27,83],[28,4,29,12],[28,13,29,17],[28,18,29,22],[28,23,29,27],[30,13,31,17],[30,18,31,22],[30,23,31,27],[32,33,33,37],[32,38,33,43],[32,44,33,49],[32,50,33,55],[34,4,35,12],[34,13,35,17],[34,18,35,22],[34,23,35,27],[15,2,19,12],[15,13,19,55],[40,44,41,49],[40,50,41,55],[38,18,39,22],[35,90,85,117],[36,4,37,12],[36,13,37,17],[21,63,22,65],[22,2,23,12],[22,13,23,55],[24,2,31,3],[24,4,25,12],[24,13,25,17],[24,18,25,22],[38,23,39,27],[38,28,39,32],[38,33,39,37],[31,61,32,113],[32,2,41,3],[32,4,33,12],[32,13,33,17],[32,18,33,22],[32,23,33,27],[47,0,49,12],[47,13,49,55],[38,38,39,43],[38,44,39,49],[38,50,39,55],[38,13,39,17],[34,33,35,37],[34,38,35,43],[36,33,37,37],[36,38,37,43],[36,44,37,49],[87,57,171,60],[87,61,171,88],[35,89,85,89],[40,13,41,17],[40,18,41,22],[40,23,41,27],[40,28,41,32],[40,33,41,37],[40,38,41,43],[42,13,46,55],[87,89,171,89],[87,90,171,117],[50,0,83,1],[51,3,82,54],[84,0,85,23],[84,24,85,55],[87,0,171,27],[87,28,171,28],[87,29,171,56],[20,0,46,1],[20,2,21,12],[20,13,21,55],[34,44,35,49],[34,50,35,55],[26,18,27,22],[26,23,27,27],[30,4,31,12],[36,18,37,22],[36,23,37,27],[36,28,37,32],[36,50,37,55],[38,4,39,12],[42,2,46,12],[34,61,34,87],[35,61,85,88]]}
["＜別表＞",null,null,null,null,null,null,null,null,null,null,null,null,null,null,null,null,null,null,null,null,null,null,null,null,null,null,null,null,null,null,null,null,null,null,null,null,null,null,null,null,null,null,null,null,null,null,null,null,null,null,null,null,null,null,null,null,null,null,null,null,{"$f":"IF(#REF!=1,\"収入印紙\",\"\")","v":{"$error":"#REF!"}},null,null,null,null,null,"ＭＡＬくるみえ利用契約書",null,null,null,null,null,null,null,null,null,null,null,null,null,null,null,null,null,null,null,null,null,null,null,null,null,null,null,null,null,null,null,null,null,"契約日：",null,null,null,{"$f":"TODAY()","v":"2021-03-29"}]
["①テレマティクスサービス内容",null,"利用期間",null,null,null,null,null,null,null,null,null,null,{"$f":"契約月数","v":{"$error":"#REF!"}},null,null,null,null,{"$f":"\"（\" & \" 令和 \" & IF(YEAR(検収日)=2019,\"元\",YEAR(検収日)-2018) & \" 年 \" & MONTH(検収日) & \" 月 \" & DAY(検収日) & \" 日 ～ \"  & \" 令和 \" & IF(YEAR(満了日)=2019,\"元\",YEAR(満了日)-2018) & \" 年 \" & MONTH(満了日) & \" 月 \" & DAY(満了日) & \" 日 ）\"","v":{"$error":"#REF!"}},null,null,null,null,null,null,null,null,null,null,null,null,null,null,null,null,null,null,null,null,null,null,null,null,null,null,"件数",null,null,null,null,{"$f":"台数","v":{"$error":"#REF!"}}]
[null,null,null,null,null,null,null,null,null,null,null,null,null,null,null,null,null,null,null,null,null,null,null,null,null,null,null,null,null,null,null,null,null,null,null,null,null,null,null,null,null,null,null,null,null,null,null,null,null,null,null,null,null,null,null,null,null,null,null,null,null,{"$f":"IF(#REF!=1,VLOOKUP(工事金額*工事件数,印紙税表,2,TRUE),\"\")","v":{"$error":"#REF!"}}]
[null,null,"契約番号"]
[null,null,null,null,null,null,null,null,null,null,null,null,null,null,null,null,null,null,null,null,null,null,null,null,null,null,null,null,null,null,null,null,null,null,null,null,null,null,null,null,null,null,null,null,null,null,null,null,null,null,null,null,null,null,null,null,null,null,null,null,null,{"$f":"IF(#REF!=1,\"貼付願います\",\"\")","v":{"$error":"#REF!"}}]
[]
[]
[null,null,"単価",null,null,null,null,null,null,null,null,null,null,"月額",null,null,null,null,"消費税等",null,null,null,null,"小計",null,null,null,null,"利用月数",null,null,null,null,"合計",null,null,null,null,null,null,null,null,null,null,null,null,null,null,null,null,null,null,null,null,null,null,null,null,null,null,null,"乙",null,null,null,null,null,null,null,null,null,null,null,null,null,null,null,null,null,null,null,null,null,null,null,null,null,null,null,"甲"]
[]
[null,null,null,null,null,null,null,null,null,null,null,null,null,{"$f":"ASP利用料","v":{"$error":"#REF!"}},null,null,null,null,{"$f":"N10*消費税率","v":{"$error":"#REF!"}},null,null,null,null,{"$f":"N10+S10","v":{"$error":"#REF!"}},null,null,null,null,{"$f":"契約月数","v":{"$error":"#REF!"}},null,null,null,null,{"$f":"X10*AC10","v":{"$error":"#REF!"}},null,null,null,null,null,null,null,null,null,null,null,null,null,null,null,null,null,null,null,null,null,null,null,null,null,null,null,null,null,"住所",null,null,null,null,null,null,null,null,null,null,null,null,null,null,null,null,null,null,null,null,null,null,null,null,null,null,null,"住所",null,null,{"$f":"VLOOKUP(部課名,部課データ,4,FALSE) & CHAR(10) & VLOOKUP(部課名,部課データ,5,FALSE)","v":{"$error":"#REF!"}}]
[]
[null,null,"支払額",null,null,null,null,null,null,null,null,null,null,"利用件数",null,null,null,null,"月額",null,null,null,null,"消費税等",null,null,null,null,"小計",null,null,null,null,"利用月数",null,null,null,null,"１回目",null,null,null,null,null,"２回目以降",null,null,null,null,null,"合計"]
[]
[null,null,null,null,null,null,null,null,null,null,null,null,null,{"$f":"台数","v":{"$error":"#REF!"}},null,null,null,null,{"$f":"N10*N14","v":{"$error":"#REF!"}},null,null,null,null,{"$f":"S10*N14","v":{"$error":"#REF!"}},null,null,null,null,{"$f":"S14+X14","v":{"$error":"#REF!"}},null,null,null,null,{"$f":"契約月数","v":{"$error":"#REF!"}},null,null,null,null,{"$f":"IF(ASP初回回収日=ASP2回目回収日,2,1)*AC14","v":{"$error":"#REF!"}},null,null,null,null,null,{"$f":"AC14","v":{"$error":"#REF!"}},null,null,null,null,null,{"$f":"AC14*AH14","v":{"$error":"#REF!"}},null,null,null,null,null,null,null,null,null,null,null,null,null,null,null,null,null,null,null,null,null,null,null,null,null,null,null,null,null,null,null,null,null,null,null,null,null,null,null,null,null,null,null,"三菱オートリース株式会社"]
[null,null,null,null,null,null,null,null,null,null,null,null,null,null,null,null,null,null,null,null,null,null,null,null,null,null,null,null,null,null,null,null,null,null,null,null,null,null,null,null,null,null,null,null,null,null,null,null,null,null,null,null,null,null,null,null,null,null,null,null,null,null,null,"氏名",null,null,null,null,null,null,null,null,null,null,null,null,null,null,null,null,null,null,"印",null,null,null,null,null,null,null,null,"氏名"]
[null,null,"支払日、支払方法",null,null,null,null,null,null,null,null,null,null,null,null,null,null,null,null,null,null,null,null,null,null,null,null,null,null,null,null,null,null,null,null,null,null,null,null,null,null,null,null,null,null,null,null,null,null,null,null,null,null,null,null,null,null,null,null,null,null,null,null,null,null,null,null,null,null,null,null,null,null,null,null,null,null,null,null,null,null,null,null,null,null,null,null,null,null,null,null,null,null,null,{"$f":"VLOOKUP(部課名,部課データ,8,FALSE)","v":{"$error":"#REF!"}},null,null,null,null,null,null,null,{"$f":"VLOOKUP(部課名,部課データ,9,FALSE)","v":{"$error":"#REF!"}},null,null,null,null,null,null,null,null,{"$f":"IF(代理人=\"なし\",\"印\",\"\")","v":{"$error":"#REF!"}}]
[]
[]
[null,null,null,null,null,null,null,null,null,null,null,null,null,null,null,null,null,null,null,null,null,null,null,null,null,null,null,null,null,null,null,null,null,null,null,null,null,null,null,null,null,null,null,null,null,null,null,null,null,null,null,null,null,null,null,null,null,null,null,null,null,null,null,null,null,null,null,null,null,null,null,null,null,null,null,null,null,null,null,null,null,null,null,null,null,null,null,null,null,null,null,{"$f":"IF(代理人=\"\",\"\",\"代理人\")","v":{"$error":"#REF!"}}]
[null,null,null,null,null,null,null,null,null,null,null,null,null,null,null,null,null,null,null,null,null,null,null,null,null,null,null,null,null,null,null,null,null,null,null,null,null,null,null,null,null,null,null,null,null,null,null,null,null,null,null,null,null,null,null,null,null,null,null,null,null,"　連帯保証人",null,null,null,null,null,null,null,null,null,null,null,null,null,null,null,null,null,null,null,null,null,null,null,null,null,null,null,null,null,null,null,null,{"$f":"IF(代理人=\"なし\",\"\",VLOOKUP(\"市場開発部\",部課データ,8,FALSE))","v":{"$error":"#REF!"}},null,null,null,null,null,null,null,{"$f":"IF(代理人=\"なし\",\"\",VLOOKUP(\"市場開発部\",部課データ,9,FALSE))","v":{"$error":"#REF!"}},null,null,null,null,null,null,null,null,{"$f":"IF(代理人=\"なし\",\"\",\"印\")","v":{"$error":"#REF!"}}]
["②車載器販売内容",null,"販売日",null,null,null,null,null,null,null,null,null,null,{"$f":"\" 令和 \" & IF(YEAR(検収日)=2019,\"元\",YEAR(検収日)-2018) & \" 年 \" & MONTH(検収日) & \" 月 \" & DAY(検収日) & \" 日\"","v":{"$error":"#REF!"}}]
[null,null,null,null,null,null,null,null,null,null,null,null,null,null,null,null,null,null,null,null,null,null,null,null,null,null,null,null,null,null,null,null,null,null,null,null,null,null,null,null,null,null,null,null,null,null,null,null,null,null,null,null,null,null,null,null,null,null,null,null,null,null,null,"住所"]
[null,null,"販売契約番号"]
[]
[null,null,"単価",null,"販売明細",null,null,null,null,null,null,null,null,"単価",null,null,null,null,"消費税等",null,null,null,null,"小計",null,null,null,null,"＜部材明細＞"]
[]
[null,null,null,null,{"$f":"車載器種類 & IF(#REF!=1,CHAR(10) & \"(追加カメラ付き)\", \"\")","v":{"$error":"#REF!"}},null,null,null,null,null,null,null,null,{"$f":"車載器金額+追加カメラ金額","v":{"$error":"#REF!"}},null,null,null,null,{"$f":"N27*消費税率","v":{"$error":"#REF!"}},null,null,null,null,{"$f":"N27+S27","v":{"$error":"#REF!"}},null,null,null,null,null,null,null,null,null,null,null,null,null,null,null,null,null,null,null,null,null,null,null,null,null,null,null,null,null,null,null,null,null,null,null,null,null,null,null,"氏名",null,null,null,null,null,null,null,null,null,null,null,null,null,null,null,null,null,null,"印"]
[]
[null,null,null,null," 取付工事",null,null,null,null,null,null,null,null,{"$f":"工事金額","v":{"$error":"#REF!"}},null,null,null,null,{"$f":"N29*消費税率","v":{"$error":"#REF!"}},null,null,null,null,{"$f":"N29+S29","v":{"$error":"#REF!"}}]
[]
[null,null,null,null,"部材",null,null,null,null,null,null,null,null,{"$f":"部材金額","v":{"$error":"#REF!"}},null,null,null,null,{"$f":"N31*消費税率","v":{"$error":"#REF!"}},null,null,null,null,{"$f":"N31+S31","v":{"$error":"#REF!"}}]
[null,null,null,null,null,null,null,null,null,null,null,null,null,null,null,null,null,null,null,null,null,null,null,null,null,null,null,null,null,null,null,null,null,null,null,null,null,null,null,null,null,null,null,null,null,null,null,null,null,null,null,null,null,null,null,null,null,null,null,null,null,"上記の者は下記「契約条項」「個人情報の取り扱いに関する同意条項」並びに別紙「重要事項説明書」に同意の上契約します。\n本契約の成立を証するため本書を当事者数作成し、甲、乙、連帯保証人が各1通保有します。"]
[null,null,"販売額",null,"販売明細",null,null,null,null,null,null,null,null,"販売台数",null,null,null,null,"販売額",null,null,null,null,"消費税等",null,null,null,null,"小計",null,null,null,null,"お支払回数",null,null,null,null,"１回目",null,null,null,null,null,"２回目以降",null,null,null,null,null,"合計"]
[]
[null,null,null,null,{"$f":"E27","v":{"$error":"#REF!"}},null,null,null,null,null,null,null,null,{"$f":"IF(#REF!=0,0,車載器台数)","v":{"$error":"#REF!"}},null,null,null,null,{"$f":"車載器金額*車載器台数+追加カメラ金額*追加カメラ台数","v":{"$error":"#REF!"}},null,null,null,null,{"$f":"S35*消費税率","v":{"$error":"#REF!"}},null,null,null,null,{"$f":"S35+X35","v":{"$error":"#REF!"}},null,null,null,null,{"$f":"IF(#REF!=0,0,IF(#REF!=1,1,車載器回収回数))","v":{"$error":"#REF!"}},null,null,null,null,{"$f":"IF(車載器初回回収日=車載器2回目回収日,2,1)*(車載器単価*車載器台数+追加カメラ単価*追加カメラ台数)","v":{"$error":"#REF!"}},null,null,null,null,null,{"$f":"IF(AH35>1,車載器単価*車載器台数+追加カメラ単価*追加カメラ台数,0)","v":{"$error":"#REF!"}},null,null,null,null,null,{"$f":"S35","v":{"$error":"#REF!"}},null,null,null,null,null,null,null,null,null,null,"＜契約条項＞"]
[null,null,null,null,null,null,null,null,null,null,null,null,null,null,null,null,null,null,null,null,null,null,null,null,null,null,null,null,null,null,null,null,null,null,null,null,null,null,null,null,null,null,null,null,null,null,null,null,null,null,null,null,null,null,null,null,null,null,null,null,null,"第１章　総則\n第1条（サービスの提供）甲は、乙に対して、本契約に基づきテレマティクスサービス「MALくるみえ」を提供します。\n第2条（定義）本契約において、使用する用語の定義は、それぞれ次のとおりとします。\n①本サービス：甲が乙に提供するテレマティクスサービス「MALくるみえ」。\n②車載器：本サービスの利用に必要な自動車に設置する機器（SDカード、SIMカード、その他の付属機器を含む）。\n③データ：乙が本サービスを利用して伝送する情報。\n④ダウンロードデータ：乙が本サービスを利用して閲覧又はダウンロードできる情報。\n⑤データ等：データ及びダウンロードデータ。\n⑥SDカード：甲から乙に貸与される情報を記録するメモリーカード。\n⑦SIMカード：甲から乙に貸与される通信に必要なICカード。\n⑧本サービス用設備：甲が本サービスを提供するにあたり、甲又は甲が指定する者が設置等を行うコンピュータ、電気通信設備、ソフトウェア及びその他の機器。\n⑨接続事業者：甲が本サービスを提供するにあたり、甲又は甲が指定する者が提携するインターネット接続プロバイダ。\n⑩接続事業者設備：接続事業者が設置等を行うコンピュータ、電気通信設備、ソフトウェア及びその他の機器。\n⑪認定利用者：乙以外の者で、甲が本サービスの利用を承諾した者。\n第3条（特約等）1.別表④記載の特約事項は、本契約の一部をなすものとし、契約条項に優先して適用されます。2.本契約と異なる合意は、別に甲乙が記名捺印する書面で合意しなければ効力が生じないものとします。\n第4条（通知）1.甲から乙への通知は、乙が甲に届け出たメールアドレス宛の電子メール、書面の郵送又は甲のホームページ上での掲載等、甲が適当と判断する方法により行います。2.前項の通知は、電子メールもしくは書面等が甲より発信等された時点又は当該通知の内容をホームページ上に掲載した時点より効力が生じるものとします。\n\n第２章　サービス\n第5条（サービス内容）本サービスの内容は、自動車に車載器を設置し、これにより危険運転映像や運行データ（速度・距離・時間・位置等）を記録、収集及びWeb上で提供することで、乙がこれを閲覧できるサービス及びコールセンターによるサポートサービスとします。\n第6条（サービス及び車載器の検収）1.乙は、受領した車載器について、車載器受領月の翌月5日までに車載器に瑕疵がないこと及び当該車載器にて本サービスが利用できることを確認し、甲所定の「検収完了証」を甲に対して送付します。この場合、車載器受領月の翌月1日に検収が完了したものとみなします。2.乙は、前項の確認を行い、何らかの瑕疵を発見した場合、甲に対して速やかに通知します。甲は、これを受けて、瑕疵の修補を行い、乙は甲の指示に従って指定された期日までに再度確認をし、甲所定の「検収完了証」を甲に対して送付します。この場合、甲が指定した期日の属する月の1日に検収が完了したものとみなします。3.「検収完了証」の送付期日までに、乙より何らの通知がない場合、当該期日の経過をもって当該期日が属する月の1日に検収が完了したものとみなします。\n第7条（利用期間）1.本サービスの利用期間は、検収完了日より開始し別表①に定める期間とします。2.検収完了日と別表①に定める利用期間の開始日が異なる場合は、検収完了日より利用期間を開始するものとします。\n第8条（ID及びパスワード）1.甲は、乙に対して、本サービスを利用する為に必要なID及びパスワードを発行します。2.乙は、前項のID及びパスワードを管理する義務を負います。3.乙は、本契約で別に定める場合を除き、第三者にID及びパスワードを使用させ、又は売買、譲渡もしくは貸与等をしてはならないものとします。4.第三者が乙に発行されたID及びパスワードにより本サービスを利用した場合、その利用は乙の行為とみなし、乙は当該第三者の行為について一切の責任を負います。5.乙は、ID及びパスワードの盗難があった場合又は第三者に利用されていることが判明した場合、速やかに甲に通知し、甲の指示に従うものとします。6.事由の如何を問わずIDが変更された場合、乙は変更後のIDにて本サービスが利用できることを直ちに確認するものとします。",null,null,null,null,null,null,null,null,null,null,null,null,null,null,null,null,null,null,null,null,null,null,null,null,null,null,null,null,"第9条（知的財産権）1.本サービス及び車載器に関する著作権及びその他一切の知的財産権（以下、併せて「知的財産権」という）は、甲又は甲が指定する者に帰属します。2.乙は、本サービスの利用が、乙に対する知的財産権の移転を意味するものではないことを確認します。\n第10条（データ等の取扱い）1.甲は、データ等について、別途バックアップを行うサービスを提供する場合を除き、保管、バックアップをする義務を負わず、一切責任を負いません。2.甲は、次の場合、乙に通知することなくデータ等を削除することができるものとします。\n①乙が第14条（禁止行為）に記載の行為を行ったとき。\n②データ等の蓄積量が甲所定の容量を超えたとき。\n③データ等が甲所定の保存日数を超えたとき。\n④その他甲が削除の必要があると判断したとき。\n3.データ等及びデータ等に基づいて得られる各種統計情報等に関する一切の権利は、甲及び甲が指定する者に帰属します。4.甲及び甲が指定する者は、データ等及びデータ等に基づいて得られる各種統計情報等をそれぞれの判断により、第三者に開示できるものとします。\n第11条（ダウンロードデータの利用）1.乙は、ダウンロードデータの日本国内における非独占かつ譲渡不能な利用ができるものとします。2.乙は、自社内での利用に限り、ダウンロードデータの全部又は一部の改変をすることができます。\n第12条（提供の中止）甲は、次の場合、緊急やむを得ないときを除き予め乙に対して通知のうえ、本サービスの提供を中止することがあります。\n①本サービス用設備の保守又は工事等を行う場合\n②本サービス用設備に障害又は故障等が発生した場合\n③接続事業者設備の保守又は工事等が行われる場合\n④接続事業者設備に障害又は故障等が発生した場合\n⑤その他本サービスの提供を行うことが困難であると甲が判断した場合\n第13条（利用の停止）甲は、乙が次のいずれかに該当するときは、乙に対して通知その他の手続きを経ることなく、乙による本サービスの利用の停止処分をすることができます。\n①支払期日を経過してもなお、第26条（車載器代金）に定める車載器の代金、第36条（利用料金）に定める利用料金又はその他本契約に基づいて乙が負担する費用（以下、併せて「利用料金等」という）を支払わないとき。\n②虚偽の届出をしたことが判明したとき、又は第42条（乙の通知義務）に反したことが判明したとき。\n③第14条（禁止行為）の規定その他本契約の規定に反したとき。\n④手形又は小切手が不渡りとなったとき。\n⑤差押、仮差押、仮処分、租税滞納処分、その他公権力の処分を受けたとき。\n⑥破産、民事再生、会社更生手続開始、民事再生手続開始又はその他これらに類似する倒産手続開始の申立てがあったとき。\n⑦監督官庁から営業許可の取消、停止処分を受けたとき。\n⑧財政状態が明らかに悪化しており、利用料金等の支払いやその他の債務の履行が困難と甲が判断したとき。\n⑨その他本サービスを利用させることが不適切であると甲が判断したとき。\n第14条（禁止行為）1.乙は、本サービスの利用にあたり、次の行為（そのおそれのある行為を含む）を行わないものとします。但し、本契約の他の条項にて異なる定めがある場合はこの限りではない。\n①甲又は第三者の著作権、商標権等の知的財産権その他の権利を侵害する行為。\n②甲又は第三者に対して、誹謗中傷又はその名誉もしくは信用を毀損する等不利益を与える行為。\n③第三者になりすまして本サービスを利用する行為。\n④第三者に本サービス又は車載器（そのプログラムを含む）を利用させる行為。\n⑤わいせつ、児童ポルノ、児童虐待にあたる画像、文書等もしくは有害なコンピュータプログラム等を送信又は掲載する行為。\n⑥本サービスにおけるベンチマークテストの結果を第三者に開示する行為。\n⑦リバース・エンジニアリング、逆アセンブル、逆コンバイル。\n⑧甲、接続事業者又は第三者の設備に負荷を与える行為。\n⑨本サービスの運営に支障を与える行為。"]
[null,null,null,null," 取付工事",null,null,null,null,null,null,null,null,{"$f":"IF(#REF!=0,0,工事件数)","v":{"$error":"#REF!"}},null,null,null,null,{"$f":"N29*N37","v":{"$error":"#REF!"}},null,null,null,null,{"$f":"S37*消費税率","v":{"$error":"#REF!"}},null,null,null,null,{"$f":"S37+X37","v":{"$error":"#REF!"}},null,null,null,null,{"$f":"IF(#REF!=0,0,IF(#REF!=1,1,工事回収回数))","v":{"$error":"#REF!"}},null,null,null,null,{"$f":"IF(工事初回回収日=工事2回目回収日,2,1)*工事単価*工事件数","v":{"$error":"#REF!"}},null,null,null,null,null,{"$f":"IF(AH37>1,工事単価*工事件数,0)","v":{"$error":"#REF!"}},null,null,null,null,null,{"$f":"S37","v":{"$error":"#REF!"}}]
[]
[null,null,null,null,"部材",null,null,null,null,null,null,null,null,{"$f":"IF(#REF!=0,0,部材件数)","v":{"$error":"#REF!"}},null,null,null,null,{"$f":"N31*N39","v":{"$error":"#REF!"}},null,null,null,null,{"$f":"S39*消費税率","v":{"$error":"#REF!"}},null,null,null,null,{"$f":"S39+X39","v":{"$error":"#REF!"}},null,null,null,null,{"$f":"IF(#REF!=0,0,IF(#REF!=1,1,部材回収回数))","v":{"$error":"#REF!"}},null,null,null,null,{"$f":"IF(工事初回回収日=工事2回目回収日,2,1)*部材単価*部材件数","v":{"$error":"#REF!"}},null,null,null,null,null,{"$f":"IF(AH39>1,部材単価*部材件数,0)","v":{"$error":"#REF!"}},null,null,null,null,null,{"$f":"S39","v":{"$error":"#REF!"}}]
[]
[null,null,null,null,"合計",null,null,null,null,null,null,null,null,"-",null,null,null,null,{"$f":"SUM(S35:W40)","v":{"$error":"#REF!"}},null,null,null,null,{"$f":"SUM(X35:AB40)","v":{"$error":"#REF!"}},null,null,null,null,{"$f":"SUM(AC35:AG40)","v":{"$error":"#REF!"}},null,null,null,null,"-",null,null,null,null,{"$f":"SUM(AM35:AR40)","v":{"$error":"#REF!"}},null,null,null,null,null,{"$f":"SUM(AS35:AX40)","v":{"$error":"#REF!"}},null,null,null,null,null,{"$f":"SUM(AY35:BD40)","v":{"$error":"#REF!"}}]
[]
[null,null,"支払日、支払方法"]
[]
[]
[]
[]
["③中途解約金\n（消費税等は別途）",null,null,null,null,null,null,null,null,null,null,null,null,"契約条項第46条の通り"]
[]
[]
["④特約事項",null,"\n\n"]
[null,null,null,"＜保守サービスに関する特約＞\n車載器に故障が発生した場合、正常品（リフレッシュ品）と交換します。なお、故障した車載器が結線タイプの場合は訪問交換作業を行います。\n1.正常品（リフレッシュ品）との交換対象機器\n車載器本体、追加カメラ、ジャンクションボックス（結線タイプにおける車載器と車両を繋ぐ中継機器）、シガープラグコード（利用開始日から1年間以内のもののみ保守サービスの対象とする）\n2.保守サービスの対象外となるもの\n①対象外部品：SDカード、ネジ、レンチ、取付用両面テープ、コードクリップ等消耗品\n②甲以外の者に依頼し、修理が行われた車載器\n③改造又は分解が行われた車載器\n④乙が本サービスを利用開始する際に購入した車載器以外の車載器\n⑤誤った使用（取扱説明書の記載に沿った使用以外の操作等）による故障　\n⑥火災、天災、地変、落雷などによる故障\n⑦浸水、泥、砂などにより生じた故障\n⑧取付業者による故障\n⑨非結線タイプの場合：取付作業、取外作業、訪問修理、業者派遣作業等による故障\n⑩結線タイプの場合：訪問交換作業以外の現地作業（取付位置の変更や調査等）による故障\n3.保守サービス対象期間\n利用期間開始日から5年間\n4.保守サービス制約事項\n①保守サービスを利用する場合は、乙は故障が発生した車載器を甲が指定する者に送付する。\n②解約された本サービスに使用していた車載器及び第12条（提供の中止）及び第13条（利用の停止）に基づき提供停止利用停止期間中の本サービスに使用している車載器は、保守サービスの対象期間内であっても保守サービスを利用できません。\n③利用期間開始後5年以内に本サービスの利用を解約・停止し、その後本サービスの利用を再開した場合でも、保守サービスの対象期間は利用期間開始から5年間となります。\n\n以下余白"]
[]
[]
[]
[]
[]
[]
[]
[]
[]
[]
[]
[]
[]
[]
[]
[]
[]
[]
[]
[]
[]
[]
[]
[]
[]
[]
[]
[]
[]
[]
[]
[]
[{"$f":"取引先名 & \" 様の営業担当\"","v":{"$error":"#REF!"}},null,null,null,null,null,null,null,null,null,null,null,null,null,null,null,null,null,null,null,null,null,null,null,{"$f":"部課名 & \"　\" & 担当者","v":{"$error":"#REF!"}}]
[]
[]
["⑩広告、宣伝又は勧誘行為。\n⑪ダウンロードデータを改変する行為。\n⑫ダウンロードデータを公衆向けに、無線又は有線を問わず送信する行為。\n⑬車載器の受領を不当に拒む行為又は車載器の送達を遅延させる行為。\n⑭車載器を本サービス利用以外の目的で使用する行為。\n⑮車載器を日本国外に持ち出す行為。\n⑯不要な情報を車載器に記録させる行為。\n⑰車載器（そのプログラムも含む）の全部又は一部を複製、変更又は破壊する行為。\n⑱法令もしくは公序良俗に反する行為又は第三者によるこれらの行為を助長させる行為。\n⑲その他甲が不適切であると判断する行為。\n2.甲は、乙が前各号のいずれかに該当すると判断した場合、通知その他の手続きを経ることなく次の措置をとることができます。この場合、乙は甲が当該措置に要した費用を負担します。\n①乙に対し、当該行為の中止、変更又はデータの移動もしくは削除を要求すること。\n②ダウンロードデータを乙が閲覧もしくはダウンロードできない状態に置くこと、変更又は削除すること。\n③その他禁止行為を停止させる為に必要な措置を行うこと。\n3.甲は、前項の措置を行う義務を負わないものとします。\n第15条（サービスの提供地域）甲は、本サービスを日本国内で提供し、日本国外では提供しません。\n第16条（サービスの変更）甲は、乙に対して事前に通知することで、本サービスの内容を変更することができるものとします。なお、利用料金等に変更が及ぶ場合は、甲は変更の2ヶ月前までに乙に対して通知します。\n第17条（サービスの廃止）1.甲は、第12条（提供の中止）に基づいて本サービスの提供を中止し、提供再開が困難と判断した場合、提供中止日をもって本サービスを廃止することができます。この場合、甲は乙に対して、事前又は事後に通知します。2.前項の他、甲は乙に対する2ヶ月前の通知をもって本サービスを廃止することができるものとします。\n第18条（乙の損害賠償）乙は、本サービスの利用に関して、故意又は過失により甲もしくは第三者に損害を生じさせた場合は、その賠償の責任を負うものとします。\n第19条（責任の制限）1.請求原因の如何を問わず、本契約に関して、甲が乙に対して負う損害賠償責任の範囲は、甲の責めに帰すべき事由が直接の原因で、かつ乙に現実に発生した通常の損害に限定され、損害賠償の額は以下に定める額を超えないものとします。但し、乙の甲に対する損害賠償請求は、乙による対応措置が必要な場合には、当該対応措置を実施したときに限り行えるものとします。\n①当該事由の発生月までに経過した利用期間が12ヶ月以上である場合：当該事由発生月の前月から過去12ヶ月間の本サービス利用料を基に計算した月額平均サービス利用料金\n②当該事由の発生月までに経過した利用期間が１ヶ月以上12ヶ月未満である場合：経過した利用期間の本サービス利用料を基に計算した月額平均サービス利用料金\n③当該事由の発生月までに経過した利用期間が1ヶ月未満である場合：当該事由発生月の平均日額利用料金に30を乗じた額\n2.乙は、当該請求をなし得ることとなった日から1ヶ月以内に当該請求をしなかったときは、その権利を失うものとします。3.第1項に規定する場合を除き、甲は損害を賠償する責任を負いません。また、予見可能性の有無に限らず、間接損害、特別損害、偶発的損害、派生的損害、結果的損害及び逸失利益について、一切の損害を負いません。\n第20条（免責）1.甲は、乙が本契約に関連して、又は乙が本サービスを利用したこともしくは理由を問わず本サービスを利用しなかったことに関連して損害を被った場合（第12条（提供の中止）、第13条（利用の停止）及び第14条（禁止行為）による場合を含む。）において、第19条（責任の制限）に規定する場合を除き、一切責任を負わないものとします。2.甲は、本サービス用設備に蓄積又は保管された情報もしくはデータ等を保護する義務を負わないものとし、その消失、削除、変更又は改竄等があった場合においても同様とします。3.甲は、乙の行為について一切責任を負わないものとし、乙は、本サービスに関して第三者との間で紛争が生じた場合には自己の責任と費用により解決する共に、甲を免責し、甲に損害を与えた場合は、当該損害を賠償する責任を負います。4.天災事変、接続事業者又は第三者の設備・回線の障害等甲の責めに帰し得ない事由により乙が被った損害について、甲は一切責任を負わないものとします。\n第21条（無保証）甲は、乙が本サービスを利用することにより得た情報等について、何らの保証もしないものとします。また、本サービス及び車載器の常時稼働並びに乙が本サービスを利用することによる効果について、何ら保証しません。\n第22条（委託）甲は本サービス提供のために、業務の全部又は一部を第三者に委託することがあります。この場合、当該第三者の義務の履行について、甲は乙に対して責任を負います。\n第23条（認定利用者）1.乙は、甲の事前の書面による承諾を得て、認定利用者に本サービスを利用させることができます。2.乙は、前項に基づき認定利用者に本サービスを利用させる場合、認定利用者に対して本契約に基づく自身の義務と同等の義務を課し、認定利用者の利用につき甲に対して責任を負います。3.甲は、認定利用者の本サービスの利用を、乙による利用とみなします。4.乙は、事由の如何を問わず、認定利用者に甲に対して何ら請求をさせないものとします。\n第24条（延長契約）1.乙は、本サービス利用期間の延長を希望する場合は、利用期間終了の2ヶ月前までに甲に対して通知し、甲が承諾したときは、本サービスの利用を延長できるものとします。2.前項に基づき本サービスの利用期間が延長される場合、甲及び乙は、利用料金、利用期間等の契約条件について協議をし、書面により利用期間の延長に係る契約（以下「延長契約」という）を締結します。3.延長契約において、第6条（サービス及び車載器の検収）及び第46条（解約）第2項②は適用しないものとします。\n\n第3章　車載器\n第25条（車載器）1.甲は、乙に対して車載器を売り渡し、乙はこれを買い受けます。なお、別表②に車載器の売買に関する記載が無い場合は、本契約上の車載器に関する規定は適用しないものとします。2.乙は、本サービスを利用できるように車載器を管理するものとし、甲は、乙が車載器に変更が加えられたことにより、乙が本サービスを正常に利用できなかったとしても責任を負わないものとします。3.乙は、第三者により車載器に関する権利が侵害された場合又は侵害されるおそれがある場合、甲に対して速やかに通知し、その侵害防止に努めるものとします。なお、当該権利に関して紛争が生じた場合は速やかに甲に対し通知の上、甲の指示に従うものとします。\n第26条（車載器代金）1.乙は、甲に対して、別表②に記載の車載器の代金を支払います。2.車載器代金の支払は、契約成立時に発生するものとします。\n第27条（車載器の引渡及び検収）1.甲は、甲が別途指定する場所にて、乙に車載器を引き渡します。2.天災地変、運送中の事故、その他甲の責めに帰し得ない事由により車載器の引渡が遅延した場合、甲は何ら責任を負わないものとします。3.車載器の検収は、第6条（サービス及び車載器の検収）の定めに従うものとします。\n第28条（車載器の取付）1.乙は、甲による取付作業が必要な車載器があることを予め認識し、この場合、乙は甲に対して取付工事を委託し、甲はこれを受託します。乙は、甲又は甲が指定する者による取付工事日（以下「工事日」という）等の指示に従います。\n2.前項の場合、工事日を第6条（サービス及び車載器の検収）に定める乙の車載器受領",null,null,null,null,null,null,null,null,null,null,null,null,null,null,null,null,null,null,null,null,null,null,null,null,null,null,null,null,"日とみなし、乙は、甲又は甲が指定する者による取付工事完了後に第6条（サービス及び車載器の検収）に定める確認を行います。なお、乙の責に帰すべき事由により取付工事が工事日に完了しなかった場合は、当該工事日に取付工事が完了したものとみなします。　\n第29条（車載器の所有権）車載器の所有権は、乙が車載器の代金を完済したときに、甲から乙に移転します。\n第30条（瑕疵担保）第6条（サービス及び車載器の検収）に記載する検収の完了後、別に定める場合を除き、甲は当該車載器の瑕疵について何ら責任を負わないものとします。\n第31条（車載器の変更等）乙は、本サービスの利用期間中、甲の事前の書面による承諾を得ない限り、次の行為をおこなわないものとします。\n①車載器を自動車以外のものに付着させること。\n②車載器の原状を変更すること。\n③車載器を第三者に譲渡、転貸、占有を移転又は使用場所を変更すること。\n第32条（車載器に関する権利の移転）甲は、車載器に関する権利を第三者の担保に入れ、又は譲渡をすることができ、乙は予めこれを承諾します。\n第33条（故障等）1.乙は、車載器が故障した場合、当該車載器に付された保証の範囲内において修理等を受けることができます。2.乙は、前項の規定に関らず、車載器の修理について、別表④特約事項に記載のサービスを受けることができます。\n第34条（SDカード及びSIMカード）1.乙は、本契約終了後、甲の指示に従い、SDカード及びSIMカードを甲に返還します。返還にかかる費用は乙が負担するものとします。2.乙は、SDカードを返還する際に、乙がSDカードに記録させた情報を消去します。なお、甲が返還を受けたSDカードに情報が残されていた場合、甲はこれを消去できるものとし、乙は当該情報について何ら請求をしないものとします。3.乙が甲指定の期日までにSDカード及びSIMカードを返還しなかった場合、甲は、乙に対して甲所定の費用を請求することができ、乙は甲の指示に従いこれを支払うものとします。\n第35条（車載器の取外し）1.乙は、甲と締結した自動車リース契約の対象車両（以下「リース車両」という）に車載器を設置した場合であって、当該自動車リース契約の終了によりリース車両を甲に返還するときは、自身の費用と責任で車載器を取り外すものとします。2.車載器を設置した自動車がリース車両であるか否かに関わらず、第28条（車載器の取付）に基づき、甲による車載器取付工事が行われた場合、乙は甲に対して車載器取外工事を委託し、甲はこれを受託します。この場合、乙は、甲又は甲が指定する者による取外工事に協力します。3.車載器が設置されたリース車両が返還された場合、車載器の所有権は無償で甲に移転し、甲は当該車載器を任意に処分できるものとします。また、甲は処分にかかる費用を乙に請求し、乙はこれを支払います。\n\n第４章　利用料金等\n第36条（利用料金）1.本サービスの利用料金は、別表①に定めます。2.前項に規定する利用料金は、第7条（利用期間）に定める利用期間の開始日より課金します。3.乙は、第12条（提供の中止）、第13条（利用の停止）、第14条（禁止行為）及び第33条（故障等）に基づき、本サービスが利用できない事態が生じても、利用期間中の利用料金を支払うものとします。\n第37条（利用料金の計算方法）1.甲は、当月初日から末日までを1つの料金月として、利用料金を計算します。2.甲は、第19条（責任の制限）に規定する場合を除き、利用料金を日割りしません。\n第38条（利用料金等の支払方法）1.乙は、甲が定める期日までに甲所定の方法により、利用料金等を支払います。2.乙が利用料金等を支払う際に要する振込手数料等の費用は、乙が負担します。\n第39条（消費税）乙は、甲に対して支払う利用料金等に消費税が課される場合は、当該消費税額を併せて支払うものとします。\n第40条（遅延利息）乙は、利用料金等の支払いを怠ったときは、支払うべき金額に対し支払期日の翌日からその完済にいたるまでの日数に応じて、支払遅延額に対して年14.6％の割合で計算した額を遅延利息として、甲指定の方法により支払います。\n\n第５章　契約\n第41条（乙の契約上の地位の承継）合併、分割又は事業譲渡等により、本契約上の乙の地位の承継が発生した場合、承継した法人は承継があった日から10日以内に甲所定の手続きに従って届け出るものとします。この場合、第42条（乙の通知義務）第2項を準用します。\n第42条（乙の通知義務）1.乙は、次のいずれかに該当するときは、甲所定の方法により直ちに甲に通知します。\n①甲への届出事項（商号、所在地、担当者、メールアドレス等）に変更があったとき。\n②第13条（利用の停止）第4号乃至7号に記載する事実が発生し、又はそのおそれがあるとき。\n2.前項の①の届出を怠ったことにより、甲からの通知の不到達等乙が不利益を被った場合においても、甲は責任を負わないものとし、通知は通常到達すべきときに到達したものとみなします。\n第43条（情報の開示）乙は、甲の請求に応じて、乙又は認定利用者の登記情報、財務情報、決算情報等甲が指定する情報を、甲に対して開示するものとします。\n第44条（担当者の通知）1.乙は、本契約及び本サービスの利用について担当者を定め、甲に対して通知します。2.乙は、担当者に変更があった場合、その旨を速やかに通知します。3.本契約及び本サービスの利用に関する連絡は、本条第1項に定める担当者を通じて行うものとします。\n第45条（有効期間）本契約の有効期間は、本契約締結日より第7条（利用期間）に定める利用期間終了日までとします。但し、有効期間終了後においても、本契約に基づいて発生し、存続している権利義務の履行のために必要な範囲で、本契約の条項は有効に存続します。\n第46条（解約）\n1.甲による解約\n①甲は、乙が第13条（利用の停止）各号に該当する場合、乙に対して通知その他の手続きをすることなく、本契約を将来に向って解約できるものとします。②乙は、①により本契約が解約となった場合、当然に期限の利益を喪失し、甲の請求に基づく利用料金等と併せて中途解約金として2ヶ月分の利用料金を支払います。また、別に甲に損害が生じた場合は、当該損害を賠償するものとします。\n2.乙による解約\n①乙は、本契約の有効期間中であっても、解約希望日の2ヶ月前までに甲所定の方法により甲に通知することで、本契約を将来に向って解約できるものとします。②①の通知が乙の解約希望日の2ヶ月前までにされなかった場合、乙は中途解約金として2ヶ月分の利用料金を支払うものとします。③乙は、①の通知が甲に到達した時点において発生している利用料金等がある場合は、これを支払うものとします。\n第47条（権利保全費用）甲は、本契約に基づく権利の保全又は権利を回復するために、必要な措置をとったときは当該措置にかかった費用（弁護士費用を含む）を乙に請求でき、乙はこれを支払います。\n第48条（権利義務の譲渡）1.甲は、本契約上の地位、本契約に基づく権利もしくは義務を第三者に譲渡又は担保の目的に供することができ、乙は予めこれを承諾します。2.乙は、甲の書面による事前の承諾なしに本契約上の地位、本契約に基づく権利もしくは義務を第三者に譲渡又は担保の目的に供してはならないものとします。\n第49条（連帯保証人）1.連帯保証人は、本契約に基づく乙の甲に対する一切の債務を",null,null,null,null,null,null,null,null,null,null,null,null,null,null,null,null,null,null,null,null,null,null,null,null,null,null,null,null,null,null,null,"保証し、乙と連帯してその履行の責めを負うものとします。2.連帯保証人が本契約による債務の一部を弁済し、代位によって甲から権利を取得した場合であっても、甲の書面による事前の承諾を得ない限り代位権を行使できないものとします。\n第50条（相殺及び返金）1.甲が乙に対して本契約から生じた債務を負担する場合、甲は、甲が乙に対して有する債権（本契約から生じたものに限らず、本契約以外から生じた債権も含む。）の弁済期到来の有無を問わずいつでも、当該債権とこの債務を対当額にて相殺することができます。2.乙は、利用料金等について、甲に対する金銭債権をもって相殺することはできません。3.第19条（責任の制限）に規定する場合を除き、乙が甲に対して支払った利用料金等は、事由の如何を問わず返金されないものとします。\n第51条（弁済の充当）1.乙又は連帯保証人の弁済した金額が、本契約から生じた債務の全額を消滅させるに足りないときは、甲が相当と認める順序・方法により充当します。2.乙又は連帯保証人が、本契約から生じた債務及び本契約以外から生じた債務を甲に負担している場合に、乙又は連帯保証人の弁済した金額が、甲に対するこれらの債務の全額を消滅させるに足りないときは、甲が相当と認める順序・方法によりいずれの債務にも充当することができます。\n第52条（既存契約の条項の変更）1.甲及び乙は、甲乙間で2019年6月14日以前に甲が乙に対して車載器を販売することで提供する本サービスの利用に関して締結した契約（「MALテレマティクスサービス利用申込書」（以下「既存契約申込書」という）に基づく契約に限る）でかつ本契約締結日時点において有効な契約（以下「既存契約」という）が存在する場合は、本契約の締結をもって、既存契約の契約条項及び個人情報の取り扱いに関する同意条項を本契約の契約条項及び個人情報の取り扱いに関する同意条項に変更することに合意します。2.前項の場合、本契約の別表④は既存契約に適用されません。また、本契約別表①の記載事項を既存契約申込書【別表1】の記載事項へ、本契約別表②の記載事項を既存契約申込書【別表2】へ、既存契約申込書【別表1】中「契約期間」を「利用期間」へ読み替えるものとします。\n\n第６章　秘密保持\n第53条（秘密保持）1.乙は、本契約に基づいて甲より開示を受けた一切の情報（以下「秘密情報」という）を秘密扱いとし、次各項に従って取り扱います。また、秘密情報の複写物、複製物及び加工物も秘密情報として取り扱います。但し、以下のいずれかに該当する情報は、秘密情報に含まないものとします。\n①開示された時点で、既に公知となっていた情報。\n②開示された時点で、既に乙が保有していた情報。\n③開示された後に、乙の責めに帰すべき事由によらずに公知となった情報。\n④正当な権利を有する第三者から守秘義務を負うことなく、適法に取得した情報。\n⑤乙が秘密情報によらず独自に開発した情報。\n2.乙は、本契約に別に定める場合を除き、秘密情報を甲の事前の書面による承諾なく第三者に開示又は漏洩してはならないものとします。但し、乙は、本サービスの利用及び本契約に定める義務を履行する目的のみにおいて、乙の従業員及び役員、並びに本契約に関して乙が依頼する弁護士、公認会計士、税理士に対して、秘密情報を開示することができます。3.前項の規定に関らず、乙は法令又は裁判所若しくは乙の監督官庁の命令に従い、必要な範囲で秘密情報を開示することができます。但し、乙はかかる開示を行った場合は、その旨を遅滞なく甲に通知します。4.乙は、秘密情報について、甲から請求があった場合は、遅滞なく甲に返還又は甲の指示に従った処理を行うものとします。5.乙は、甲が請求した場合、速やかに前項に定める乙の義務が履行されたことを証明する書面を甲に対して提出するものとします。6.本条の規定は、本契約終了後5年間有効に存続します。\n\n第7章　雑則\n第54条（反社会的勢力の排除）1.乙及び連帯保証人は、乙、連帯保証人及びそれぞれの役員が、この契約の締結日において、暴力団、暴力団員、暴力団員でなくなったときから5年を経過しない者、暴力団準構成員、暴力団関係企業、総会屋等、社会運動等標ぼうゴロ又は特殊知能暴力集団等、その他これらに準ずる者（以下これらを「暴力団等」という）に該当しないこと、及び次の各号のいずれにも該当しないことを表明し、かつ将来にわたっても該当しないことを確約します。\n①暴力団等が経営を支配していると認められる関係を有すること。\n②暴力団等が経営に実質的に関与していると認められる関係を有すること。\n③自己、自社もしくは第三者の不正の利益を図る目的又は第三者に損害を加える目的をもってする等、不当に暴力団等を利用していると認められる関係を有すること。\n④暴力団等に対して資金等を提供し、又は便宜を供与する等の関与をしていると認められる関係を有すること。\n⑤その他暴力団等と社会的に非難されるべき関係を有すること。\n2.乙及び連帯保証人は、乙、連帯保証人及びそれぞれの役員が自ら又は第三者を利用して次の各号の一にでも該当する行為を行わないことを確約します。\n①暴力的な要求行為。\n②法的な責任を超えた不当な要求行為。\n③取引に関して、脅迫的な言動をし、又は暴力を用いる行為。\n④風説を流布し、偽計を用いもしくは威力を用いて甲の信用を毀損し、又は甲の業務を妨害する行為。\n⑤その他前各号に準ずる行為。\n第55条（準拠法）本契約は日本法に準拠し、日本法により解釈されます。\n第56条（協議）本契約の記載内容又は記載のない事項について疑義が生じた場合、甲及び乙は別途協議の上、双方誠意をもって解決を図るものとします。\n第57条（合意管轄）甲、乙及び連帯保証人は、本契約について訴訟の必要が生じたときは、甲の本社、支社、支店若しくは営業所の所在地を管轄する簡易裁判所又は地方裁判所を第一審の専属的合意管轄裁判所とすることに合意します。\n\n＜個人情報の取り扱いに関する同意条項＞\n第1条（個人情報の取得・保有・利用・預託）1.乙及び連帯保証人（以下総称してお客様という）は、本契約を含む甲との取引の与信判断及び与信後の管理のため、以下の情報（以下これらを総称して個人情報という）を甲が保護措置を講じた上で取得、利用することに同意します。\n①お客様が申込時又は諸変更届出時に記載又は通知した、お客様の氏名、年齢、生年月日、住所、電話番号、勤務先に関する情報（前勤務先を含む）、振替預貯金口座、家族構成、居住状況等の属性情報。\n②本契約に関する契約日、契約番号並びに表記記載の各事項。\n③本契約に関する支払開始後の支払残高、支払残回数、月々の支払状況。\n④本契約に関するお客様の支払能力を調査するため、又は支払途上におけるお客様の支払能力を調査するため、お客様が申告したお客様の資産、負債、収入、支出、甲が取得したクレジット等の利用履歴及び過去の債務の返済状況。\n2.お客様は、甲が本契約に関する甲の事務を第三者に業務委託する場合に、甲が個人情報の保護措置を講じた上で、第1項により取得した個人情報を当該業務委託先に預託することに同意します。\n第2条（個人情報の利用）お客様は、甲が前条の目的以外に、次の各号の目的のために前条第1項①から③の個人情報を利用することに同意します。\n①甲が取り扱う、クレジット、リース、保険、車両メンテナンス等に関連する商品や役務、新商品又は各種イベント及びキャンペーン開催等（以下甲の商品という）に関する宣伝物・印刷物の送付等の営業案内に利用する場合。\n②甲の商品に関する、市場調査、商品の企画・開発のために利用する場合。\n\n",null,null,null,null,null,null,null,null,null,null,null,null,null,null,null,null,null,null,null,null,null,null,null,null,null,null,null,null,"③甲がお客様の個人情報を共同利用する場合。④甲の商品開発又はお客様満足度向上策検討のためのアンケート調査実施に利用する場合。なお、甲の具体的な事業内容については、甲のホームページでご案内しております。\n　三菱オートリース株式会社  HPｱﾄﾞﾚｽ：http://www.mitsubishi-autolease.com/\n第3条（個人情報の共同利用）1.お客様は、第1条及び第2条記載目的のために、第1条第1項第1号から第3号の個人情報を下記甲関連会社が共同利用することに同意します。\n　・MALビジネスサポート株式会社（子会社）\n　・三菱商事株式会社　・三菱UFJリース株式会社\n2.お客様は、本サービスの提供のために、第1条①から③の個人情報を日本電気株式会社が共同利用することに同意します。\n第4条（個人信用情報機関への登録、利用）1.お客様は、甲がお客様の支払能力を調査するために、甲が加盟する個人信用情報機関（個人の支払能力に関する情報の収集及び加盟店会員に対する当該情報の提供を業とする者をいい、以下加盟先機関という）及び加盟先機関と提携する個人信用情報機関（以下提携先機関という）に照会し、お客様の個人情報（破産宣告等の公的記録情報、電話帳記載の情報を含む）が登録されている場合には、当該個人情報を利用することに同意します。なお、支払能力の調査以外の目的には利用しません。2.お客様は、本契約に関する客観的な取引事実に基づく個人情報が、加盟先機関に第3項各号記載の期間登録され、加盟先機関及び提携先機関の加盟会員により、お客様の支払能力に関する調査のために利用されることに同意します。なお、支払能力の調査以外の目的には利用しません。3.加盟先機関の名称、住所、お問合せ電話番号、及び客観的な取引事実に基づく個人情報が登録される期間は次の各号の通りです。\n①株式会社シー・アイ・シー（主に割賦販売等のクレジット事業を営む企業を会員とする個人信用情報機関）\n〒160-8375 東京都新宿区西新宿1－23－7新宿ﾌｧｰｽﾄｳｴｽﾄ15階　\nTEL：0120－810－414  HPｱﾄﾞﾚｽ：http://www.cic.co.jp/\n＜個人情報が登録される期間＞\nア.本契約に係る申込をした事実：甲が㈱シー・アイ・シーに照会した日から6ヶ月間。\nイ.本契約に係る客観的な取引事実：契約期間中及び契約終了後5年以内。\nウ.債務の支払を延滞した事実：契約期間中及び契約終了日から5年間。\n②株式会社日本信用情報機構（主にクレジット事業、リース事業、保証事業、貸金業等の与信事業を営む企業を会員とする個人信用情報機関）\n〒101-0042 東京都千代田区神田東松下町41-1\nTEL：0120－441－481  HPｱﾄﾞﾚｽ：http://www.jicc.co.jp/\n＜個人情報が登録される期間＞\nア.本契約に係る申込をした事実：当該申込日から6ヶ月を超えない期間。\nイ.本契約に係る客観的な取引事実：契約継続中及び完済日から5年を超えない期間（ただし、債権譲渡の事実に係る情報については当該事実の発生日から1年を超えない期間。）。\nウ.債務の支払を延滞した事実：当該事実の発生日から5年を超えない期間（ただし、延滞情報については延滞継続中、延滞解消の事実に係る情報については当該事実の発生日から1年を超えない期間。）。\n4.本契約の期間中に新たに個人信用情報機関に加盟し、登録・利用する場合は、別途、書面により通知し、同意を得るものとします。5.甲が加盟する㈱シー・アイ・シー及び㈱日本信用情報機構が提携する提携先機関は、次の機関です。なお、提携先機関の加盟会員により利用される個人情報は第3項各号「ウ.債務の支払いを延滞した事実」になります。\n全国銀行個人信用情報センター（主に金融機関とその関係会社を会員とする個人信用情報機関）\n〒100-8261 東京都千代田区丸の内1－3－1　銀行会館　\nTEL：03－3214－5020  HPｱﾄﾞﾚｽ：http://www.zenginkyo.or.jp/pcic/index.html\n6.甲が各加盟先機関に登録する情報は、次の各号の通りです。\n①㈱シー・アイ・シーに登録する情報は、氏名、生年月日、住所、電話番号、勤務先、契約の種類、契約日、商品名、契約額、支払回数、月々の支払状況、運転免許証番号、残高の情報となります。\n②㈱日本信用情報機構に登録する情報は、氏名、生年月日、性別、住所、電話番号、勤務先、勤務先電話番号、運転免許証等の記号番号等の本人識別情報及び契約の種類、契約日、契約金額、保証額等の契約内容に関する情報及び、入金日、入金予定日、残高金額、完済日、延滞等の返済状況に関する情報及び、債権回収、債務整理、保証履行、強制回収、破産申立、債権譲渡等の取引事実に関する情報となります。\n7.個人信用情報機関の加盟資格、加盟会員企業名等の詳細は、上記各機関のホームページをご覧ください。\n第5条（個人情報の提供、利用）1.お客様は、甲が物品製造者、仕入先・売主、保険業者（保険代理店を含む）、自動車登録代行業者、整備工場、その他本契約に基づく甲の義務履行に関連する業者（以下第三者提供先という）に対して、第1条第1項①ないし③に記載の情報を提供し、当該第三者提供先がこれを利用することに同意します。2.前項の第三者提供先への個人情報の提供期間は、原則として契約期間中及び本契約の終了日から5年間です。\n第6条（保有個人データの開示・訂正・削除）1.お客様は、甲及び第4条に記載する個人信用情報機関に対して、自己に関する保有個人データを開示するよう請求することが出来ます。\n①甲に開示を求める場合には、第9条記載の窓口に連絡して下さい。開示請求手続き（受付窓口、受付方法、必要な書類、手数料等）の詳細についてお答えします。また、開示請求手続きにつきましては、甲ホームページで公開しております。\n②個人信用情報機関に開示を求める場合には、第4条記載の個人信用情報機関に連絡して下さい。\n2.開示請求により、甲の保有する保有個人データについて、万一登録内容が事実でないことが判明した場合、甲は速やかに利用目的の達成に必要な範囲で当該保有個人データの訂正又は削除に応じるものとします。\n第7条（本同意条項に不同意の場合）甲は、お客様が本契約の必要な記載事項（本契約書にお客様が記載すべき事項）の記載を希望しない場合及び本同意条項の内容の全部又は一部を承認できない場合、本契約をお断りする事があります。ただし、第2条又は第5条に同意しない場合でも、これを理由に甲が本契約をお断りすることはありません。\n第8条（利用、提供中止の申出）第2条及び第5条の同意を得た範囲内で甲が当該情報を利用、提供している場合であっても、乙又は連帯保証人から中止の申出があった場合には、甲はそれ以降の甲での利用、第三者提供先への提供を中止する措置をとります。ただし、請求書等の営業事務に関する書類及びこれに同封する甲の営業活動等に関する宣伝物の送付については、中止の申出はできないものとします。\n第9条（甲のお問合わせ窓口）保有個人データの開示、訂正、削除についてのお客様のお問合せや利用、提供中止、その他ご意見の申出等に関しましては、次の甲法務コンプライアンス部までお願いします。\n法務コンプライアンス部　TEL：03－5476－0829\n第10条（本同意条項の改訂）本同意条項は法令に定める手続きにより、必要な範囲内で変更できるものとします。　　　　　　　　　　　　　　　　　　　　　　　以上\n"]

{"sheet":"■検収完了書","index":1,"n_rows":85,"n_cols":43,"rows_kept":85,"cut":false,"hidden":true,"merged":[[0,0,1,34],[0,37,1,41],[0,42,1,54],[6,1,7,22],[8,3,9,5],[8,28,9,32],[8,34,11,54],[10,30,11,32],[12,34,15,54],[13,3,14,5],[13,22,14,23],[15,30,16,32],[19,1,23,54],[24,1,26,18],[24,19,26,33],[24,34,26,40],[24,41,26,54],[27,1,29,18],[27,19,29,54],[31,1,32,18],[31,19,32,54],[33,1,34,9],[33,10,34,18],[33,19,34,24],[33,25,34,33],[33,34,34,54],[35,1,35,9],[35,10,35,18],[35,19,35,24],[35,25,35,33],[35,34,35,54],[36,1,36,9],[36,10,36,18],[36,19,36,24],[36,25,36,33],[36,34,36,54],[37,1,37,9],[37,10,37,18],[37,19,37,24],[37,25,37,33],[37,34,37,54],[38,1,38,9],[38,10,38,18],[38,19,38,24],[38,25,38,33],[38,34,38,54],[39,1,39,9],[39,10,39,18],[39,19,39,24],[39,25,39,33],[39,34,39,54],[40,1,40,9],[40,10,40,18],[40,19,40,24],[40,25,40,33],[40,34,40,54],[41,1,41,9],[41,10,41,18],[41,19,41,24],[41,25,41,33],[41,34,41,54],[42,1,42,9],[42,10,42,18],[42,19,42,24],[42,25,42,33],[42,34,42,54],[43,1,43,9],[43,10,43,18],[43,19,43,24],[43,25,43,33],[43,34,43,54],[44,1,44,9],[44,10,44,18],[44,19,44,24],[44,25,44,33],[44,34,44,54],[45,1,45,9],[45,10,45,18],[45,19,45,24],[45,25,45,33],[45,34,45,54],[46,1,46,9],[46,10,46,18],[46,19,46,24],[46,25,46,33],[46,34,46,54],[47,1,47,9],[47,10,47,18],[47,19,47,24],[47,25,47,33],[47,34,47,54],[48,1,48,9],[48,10,48,18],[48,19,48,24],[48,25,48,33],[48,34,48,54],[49,1,49,9],[49,10,49,18],[49,19,49,24],[49,25,49,33],[49,34,49,54],[50,1,50,9],[50,10,50,18],[50,19,50,24],[50,25,50,33],[50,34,50,54],[52,1,53,24],[52,25,53,54],[57,1,58,18],[57,19,58,54],[59,1,60,9],[59,10,60,18],[59,19,60,24],[59,25,60,33],[59,34,60,54],[61,1,61,9],[61,10,61,18],[61,19,61,24],[61,25,61,33],[61,34,61,54],[62,1,62,9],[62,10,62,18],[62,19,62,24],[62,25,62,33],[62,34,62,54],[63,1,63,9],[63,10,63,18],[63,19,63,24],[63,25,63,33],[63,34,63,54],[64,1,64,9],[64,10,64,18],[64,19,64,24],[64,25,64,33],[64,34,64,54],[65,1,65,9],[65,10,65,18],[65,19,65,24],[65,25,65,33],[65,34,65,54],[66,1,66,9],[66,10,66,18],[66,19,66,24],[66,25,66,33],[66,34,66,54],[67,1,67,9],[67,10,67,18],[67,19,67,24],[67,25,67,33],[67,34,67,54],[68,1,68,9],[68,10,68,18],[68,19,68,24],[68,25,68,33],[68,34,68,54],[69,1,69,9],[69,10,69,18],[69,19,69,24],[69,25,69,33],[69,34,69,54],[70,1,70,9],[70,10,70,18],[70,19,70,24],[70,25,70,33],[70,34,70,54],[71,1,71,9],[71,10,71,18],[71,19,71,24],[71,25,71,33],[71,34,71,54],[72,1,72,9],[72,10,72,18],[72,19,72,24],[72,25,72,33],[72,34,72,54],[73,1,73,9],[73,10,73,18],[73,19,73,24],[73,25,73,33],[73,34,73,54],[74,1,74,9],[74,10,74,18],[74,19,74,24],[74,25,74,33],[74,34,74,54],[75,1,75,9],[75,10,75,18],[75,19,75,24],[75,25,75,33],[75,34,75,54],[76,1,76,9],[76,10,76,18],[76,19,76,24],[76,25,76,33],[76,34,76,54],[77,1,77,9],[77,10,77,18],[77,19,77,24],[77,25,77,33],[77,34,77,54],[78,1,78,9],[78,10,78,18],[78,19,78,24],[78,25,78,33],[78,34,78,54],[79,1,79,9],[79,10,79,18],[79,19,79,24],[79,25,79,33],[79,34,79,54],[80,1,80,9],[80,10,80,18],[80,19,80,24],[80,25,80,33],[80,34,80,54],[81,1,81,9],[81,10,81,18],[81,19,81,24],[81,25,81,33],[81,34,81,54],[84,1,84,9],[84,10,84,18],[84,19,84,24],[84,25,84,33],[84,34,84,54],[82,1,82,9],[82,10,82,18],[82,19,82,24],[82,25,82,33],[82,34,82,54],[83,1,83,9],[83,10,83,18],[83,19,83,24],[83,25,83,33],[83,34,83,54]]}
["ＭＡＬくるみえ検収完了証",null,null,null,null,null,null,null,null,null,null,null,null,null,null,null,null,null,null,null,null,null,null,null,null,null,null,null,null,null,null,null,null,null,null,null,null,"検収日",null,null,null,null,{"$f":"\" 令和 \" & IF(YEAR(検収日)=2019,\"元\",YEAR(検収日)-2018) & \" 年 \" & MONTH(検収日) & \" 月 \" & DAY(検収日) & \" 日\"","v":{"$error":"#REF!"}}]
[]
[]
[]
[]
[]
[null,"三菱オートリース株式会社　御中"]
[]
[null,null,null,null,null,null,null,null,null,null,null,null,null,null,null,null,null,null,null,null,null,null,null,null,null,null,null,null,"（お客様）"]
[]
[null,null,null,null,null,null,null,null,null,null,null,null,null,null,null,null,null,null,null,null,null,null,null,null,null,null,null,null,null,null,"住所"]
[]
[]
[]
[]
[null,null,null,null,null,null,null,null,null,null,null,null,null,null,null,null,null,null,null,null,null,null,null,null,null,null,null,null,null,null,"氏名"]
[]
[]
[]
[null,"貴社と当社との間で締結した下記MALくるみえ利用契約に基づき、引き渡しを受けた車載器に瑕疵がないこと及び当該車載器にてMALくるみえが利用出来ることを確認し、本日検収を完了致しました。\n\n　　　　　　　　　　　　　　　　　　　　　　　　　　　　　　記\n\n\n"]
[]
[]
[]
[]
[null,"契約日",null,null,null,null,null,null,null,null,null,null,null,null,null,null,null,null,null,{"$f":"\" 令和 \" & IF(YEAR(検収日)=2019,\"元\",YEAR(検収日)-2018) & \" 年 \" & MONTH(検収日) & \" 月 \" & DAY(検収日) & \" 日\"","v":{"$error":"#REF!"}},null,null,null,null,null,null,null,null,null,null,null,null,null,null,"件数",null,null,null,null,null,null,{"$f":"台数","v":{"$error":"#REF!"}}]
[]
[]
[null,"サービス利用期間",null,null,null,null,null,null,null,null,null,null,null,null,null,null,null,null,null,{"$f":"TEXT(契約月数,\"0ヵ月間\") & \"　（\" & \" 令和 \" & IF(YEAR(検収日)=2019,\"元\",YEAR(検収日)-2018) & \" 年 \" & MONTH(検収日) & \" 月 \" & DAY(検収日) & \" 日 ～ \"  & \" 令和 \" & IF(YEAR(満了日)=2019,\"元\",YEAR(満了日)-2018) & \" 年 \" & MONTH(満了日) & \" 月 \" & DAY(満了日) & \" 日 ）\"","v":{"$error":"#REF!"}}]
[]
[]
[]
[null,"MALくるみえ",null,null,null,null,null,null,null,null,null,null,null,null,null,null,null,null,null,"車載器"]
[]
[null,"契約番号",null,null,null,null,null,null,null,null,"利用部署",null,null,null,null,null,null,null,null,"品名",null,null,null,null,null,"契約番号",null,null,null,null,null,null,null,null,"搭載車両"]
[]
[null,null,null,null,null,null,null,null,null,null,{"$f":"IF(デモ機手配依頼書!#REF!<>\"\",デモ機手配依頼書!#REF!,IF(デモ機手配依頼書!#REF!<>\"\",デモ機手配依頼書!#REF!,IF(デモ機手配依頼書!V17<>\"\",デモ機手配依頼書!V17,\"\")))","v":{"$error":"#REF!"}},null,null,null,null,null,null,null,null,{"$f":"IF(ISBLANK(デモ機手配依頼書!#REF!),\"\",LEFT(車載器種類,7))","v":{"$error":"#REF!"}},null,null,null,null,null,null,null,null,null,null,null,null,null,null,{"$f":"IF(ISBLANK(デモ機手配依頼書!#REF!),\"\",デモ機手配依頼書!#REF!)","v":{"$error":"#REF!"}}]
[null,null,null,null,null,null,null,null,null,null,{"$f":"IF(デモ機手配依頼書!#REF!<>\"\",デモ機手配依頼書!#REF!,IF(デモ機手配依頼書!#REF!<>\"\",デモ機手配依頼書!#REF!,IF(デモ機手配依頼書!#REF!<>\"\",デモ機手配依頼書!#REF!,\"\")))","v":{"$error":"#REF!"}},null,null,null,null,null,null,null,null,{"$f":"IF(ISBLANK(デモ機手配依頼書!#REF!),\"\",LEFT(車載器種類,7))","v":{"$error":"#REF!"}},null,null,null,null,null,null,null,null,null,null,null,null,null,null,{"$f":"IF(ISBLANK(デモ機手配依頼書!#REF!),\"\",デモ機手配依頼書!#REF!)","v":{"$error":"#REF!"}}]
[null,null,null,null,null,null,null,null,null,null,{"$f":"IF(デモ機手配依頼書!#REF!<>\"\",デモ機手配依頼書!#REF!,IF(デモ機手配依頼書!#REF!<>\"\",デモ機手配依頼書!#REF!,IF(デモ機手配依頼書!#REF!<>\"\",デモ機手配依頼書!#REF!,\"\")))","v":{"$error":"#REF!"}},null,null,null,null,null,null,null,null,{"$f":"IF(ISBLANK(デモ機手配依頼書!#REF!),\"\",LEFT(車載器種類,7))","v":{"$error":"#REF!"}},null,null,null,null,null,null,null,null,null,null,null,null,null,null,{"$f":"IF(ISBLANK(デモ機手配依頼書!#REF!),\"\",デモ機手配依頼書!#REF!)","v":{"$error":"#REF!"}}]
[null,null,null,null,null,null,null,null,null,null,{"$f":"IF(デモ機手配依頼書!#REF!<>\"\",デモ機手配依頼書!#REF!,IF(デモ機手配依頼書!#REF!<>\"\",デモ機手配依頼書!#REF!,IF(デモ機手配依頼書!#REF!<>\"\",デモ機手配依頼書!#REF!,\"\")))","v":{"$error":"#REF!"}},null,null,null,null,null,null,null,null,{"$f":"IF(ISBLANK(デモ機手配依頼書!#REF!),\"\",LEFT(車載器種類,7))","v":{"$error":"#REF!"}},null,null,null,null,null,null,null,null,null,null,null,null,null,null,{"$f":"IF(ISBLANK(デモ機手配依頼書!#REF!),\"\",デモ機手配依頼書!#REF!)","v":{"$error":"#REF!"}}]
[null,null,null,null,null,null,null,null,null,null,{"$f":"IF(デモ機手配依頼書!#REF!<>\"\",デモ機手配依頼書!#REF!,IF(デモ機手配依頼書!#REF!<>\"\",デモ機手配依頼書!#REF!,IF(デモ機手配依頼書!#REF!<>\"\",デモ機手配依頼書!#REF!,\"\")))","v":{"$error":"#REF!"}},null,null,null,null,null,null,null,null,{"$f":"IF(ISBLANK(デモ機手配依頼書!#REF!),\"\",LEFT(車載器種類,7))","v":{"$error":"#REF!"}},null,null,null,null,null,null,null,null,null,null,null,null,null,null,{"$f":"IF(ISBLANK(デモ機手配依頼書!#REF!),\"\",デモ機手配依頼書!#REF!)","v":{"$error":"#REF!"}}]
[null,null,null,null,null,null,null,null,null,null,{"$f":"IF(デモ機手配依頼書!#REF!<>\"\",デモ機手配依頼書!#REF!,IF(デモ機手配依頼書!#REF!<>\"\",デモ機手配依頼書!#REF!,IF(デモ機手配依頼書!#REF!<>\"\",デモ機手配依頼書!#REF!,\"\")))","v":{"$error":"#REF!"}},null,null,null,null,null,null,null,null,{"$f":"IF(ISBLANK(デモ機手配依頼書!#REF!),\"\",LEFT(車載器種類,7))","v":{"$error":"#REF!"}},null,null,null,null,null,null,null,null,null,null,null,null,null,null,{"$f":"IF(ISBLANK(デモ機手配依頼書!#REF!),\"\",デモ機手配依頼書!#REF!)","v":{"$error":"#REF!"}}]
[null,null,null,null,null,null,null,null,null,null,{"$f":"IF(デモ機手配依頼書!#REF!<>\"\",デモ機手配依頼書!#REF!,IF(デモ機手配依頼書!#REF!<>\"\",デモ機手配依頼書!#REF!,IF(デモ機手配依頼書!#REF!<>\"\",デモ機手配依頼書!#REF!,\"\")))","v":{"$error":"#REF!"}},null,null,null,null,null,null,null,null,{"$f":"IF(ISBLANK(デモ機手配依頼書!#REF!),\"\",LEFT(車載器種類,7))","v":{"$error":"#REF!"}},null,null,null,null,null,null,null,null,null,null,null,null,null,null,{"$f":"IF(ISBLANK(デモ機手配依頼書!#REF!),\"\",デモ機手配依頼書!#REF!)","v":{"$error":"#REF!"}}]
[null,null,null,null,null,null,null,null,null,null,{"$f":"IF(デモ機手配依頼書!#REF!<>\"\",デモ機手配依頼書!#REF!,IF(デモ機手配依頼書!#REF!<>\"\",デモ機手配依頼書!#REF!,IF(デモ機手配依頼書!#REF!<>\"\",デモ機手配依頼書!#REF!,\"\")))","v":{"$error":"#REF!"}},null,null,null,null,null,null,null,null,{"$f":"IF(ISBLANK(デモ機手配依頼書!#REF!),\"\",LEFT(車載器種類,7))","v":{"$error":"#REF!"}},null,null,null,null,null,null,null,null,null,null,null,null,null,null,{"$f":"IF(ISBLANK(デモ機手配依頼書!#REF!),\"\",デモ機手配依頼書!#REF!)","v":{"$error":"#REF!"}}]
[null,null,null,null,null,null,null,null,null,null,{"$f":"IF(デモ機手配依頼書!#REF!<>\"\",デモ機手配依頼書!#REF!,IF(デモ機手配依頼書!#REF!<>\"\",デモ機手配依頼書!#REF!,IF(デモ機手配依頼書!#REF!<>\"\",デモ機手配依頼書!#REF!,\"\")))","v":{"$error":"#REF!"}},null,null,null,null,null,null,null,null,{"$f":"IF(ISBLANK(デモ機手配依頼書!#REF!),\"\",LEFT(車載器種類,7))","v":{"$error":"#REF!"}},null,null,null,null,null,null,null,null,null,null,null,null,null,null,{"$f":"IF(ISBLANK(デモ機手配依頼書!#REF!),\"\",デモ機手配依頼書!#REF!)","v":{"$error":"#REF!"}}]
[null,null,null,null,null,null,null,null,null,null,{"$f":"IF(デモ機手配依頼書!#REF!<>\"\",デモ機手配依頼書!#REF!,IF(デモ機手配依頼書!#REF!<>\"\",デモ機手配依頼書!#REF!,IF(デモ機手配依頼書!#REF!<>\"\",デモ機手配依頼書!#REF!,\"\")))","v":{"$error":"#REF!"}},null,null,null,null,null,null,null,null,{"$f":"IF(ISBLANK(デモ機手配依頼書!#REF!),\"\",LEFT(車載器種類,7))","v":{"$error":"#REF!"}},null,null,null,null,null,null,null,null,null,null,null,null,null,null,{"$f":"IF(ISBLANK(デモ機手配依頼書!#REF!),\"\",デモ機手配依頼書!#REF!)","v":{"$error":"#REF!"}}]
[null,null,null,null,null,null,null,null,null,null,{"$f":"IF(デモ機手配依頼書!#REF!<>\"\",デモ機手配依頼書!#REF!,IF(デモ機手配依頼書!#REF!<>\"\",デモ機手配依頼書!#REF!,IF(デモ機手配依頼書!#REF!<>\"\",デモ機手配依頼書!#REF!,\"\")))","v":{"$error":"#REF!"}},null,null,null,null,null,null,null,null,{"$f":"IF(ISBLANK(デモ機手配依頼書!#REF!),\"\",LEFT(車載器種類,7))","v":{"$error":"#REF!"}},null,null,null,null,null,null,null,null,null,null,null,null,null,null,{"$f":"IF(ISBLANK(デモ機手配依頼書!#REF!),\"\",デモ機手配依頼書!#REF!)","v":{"$error":"#REF!"}}]
[null,null,null,null,null,null,null,null,null,null,{"$f":"IF(デモ機手配依頼書!#REF!<>\"\",デモ機手配依頼書!#REF!,IF(デモ機手配依頼書!#REF!<>\"\",デモ機手配依頼書!#REF!,IF(デモ機手配依頼書!#REF!<>\"\",デモ機手配依頼書!#REF!,\"\")))","v":{"$error":"#REF!"}},null,null,null,null,null,null,null,null,{"$f":"IF(ISBLANK(デモ機手配依頼書!#REF!),\"\",LEFT(車載器種類,7))","v":{"$error":"#REF!"}},null,null,null,null,null,null,null,null,null,null,null,null,null,null,{"$f":"IF(ISBLANK(デモ機手配依頼書!#REF!),\"\",デモ機手配依頼書!#REF!)","v":{"$error":"#REF!"}}]
[null,null,null,null,null,null,null,null,null,null,{"$f":"IF(デモ機手配依頼書!#REF!<>\"\",デモ機手配依頼書!#REF!,IF(デモ機手配依頼書!#REF!<>\"\",デモ機手配依頼書!#REF!,IF(デモ機手配依頼書!#REF!<>\"\",デモ機手配依頼書!#REF!,\"\")))","v":{"$error":"#REF!"}},null,null,null,null,null,null,null,null,{"$f":"IF(ISBLANK(デモ機手配依頼書!#REF!),\"\",LEFT(車載器種類,7))","v":{"$error":"#REF!"}},null,null,null,null,null,null,null,null,null,null,null,null,null,null,{"$f":"IF(ISBLANK(デモ機手配依頼書!#REF!),\"\",デモ機手配依頼書!#REF!)","v":{"$error":"#REF!"}}]
[null,null,null,null,null,null,null,null,null,null,{"$f":"IF(デモ機手配依頼書!#REF!<>\"\",デモ機手配依頼書!#REF!,IF(デモ機手配依頼書!#REF!<>\"\",デモ機手配依頼書!#REF!,IF(デモ機手配依頼書!#REF!<>\"\",デモ機手配依頼書!#REF!,\"\")))","v":{"$error":"#REF!"}},null,null,null,null,null,null,null,null,{"$f":"IF(ISBLANK(デモ機手配依頼書!#REF!),\"\",LEFT(車載器種類,7))","v":{"$error":"#REF!"}},null,null,null,null,null,null,null,null,null,null,null,null,null,null,{"$f":"IF(ISBLANK(デモ機手配依頼書!#REF!),\"\",デモ機手配依頼書!#REF!)","v":{"$error":"#REF!"}}]
[null,null,null,null,null,null,null,null,null,null,{"$f":"IF(デモ機手配依頼書!#REF!<>\"\",デモ機手配依頼書!#REF!,IF(デモ機手配依頼書!#REF!<>\"\",デモ機手配依頼書!#REF!,IF(デモ機手配依頼書!#REF!<>\"\",デモ機手配依頼書!#REF!,\"\")))","v":{"$error":"#REF!"}},null,null,null,null,null,null,null,null,{"$f":"IF(ISBLANK(デモ機手配依頼書!#REF!),\"\",LEFT(車載器種類,7))","v":{"$error":"#REF!"}},null,null,null,null,null,null,null,null,null,null,null,null,null,null,{"$f":"IF(ISBLANK(デモ機手配依頼書!#REF!),\"\",デモ機手配依頼書!#REF!)","v":{"$error":"#REF!"}}]
[null,null,null,null,null,null,null,null,null,null,{"$f":"IF(デモ機手配依頼書!#REF!<>\"\",デモ機手配依頼書!#REF!,IF(デモ機手配依頼書!#REF!<>\"\",デモ機手配依頼書!#REF!,IF(デモ機手配依頼書!#REF!<>\"\",デモ機手配依頼書!#REF!,\"\")))","v":{"$error":"#REF!"}},null,null,null,null,null,null,null,null,{"$f":"IF(ISBLANK(デモ機手配依頼書!#REF!),\"\",LEFT(車載器種類,7))","v":{"$error":"#REF!"}},null,null,null,null,null,null,null,null,null,null,null,null,null,null,{"$f":"IF(ISBLANK(デモ機手配依頼書!#REF!),\"\",デモ機手配依頼書!#REF!)","v":{"$error":"#REF!"}}]
[]
[null,{"$f":"取引先名 & \" 様の営業担当\"","v":{"$error":"#REF!"}},null,null,null,null,null,null,null,null,null,null,null,null,null,null,null,null,null,null,null,null,null,null,null,{"$f":"部課名 & \"　\" & 担当者","v":{"$error":"#REF!"}}]
[]
[]
[]
[]
[null,"MALくるみえ",null,null,null,null,null,null,null,null,null,null,null,null,null,null,null,null,null,"車載器"]
[]
[null,"契約番号",null,null,null,null,null,null,null,null,"利用部署",null,null,null,null,null,null,null,null,"品名",null,null,null,null,null,"契約番号",null,null,null,null,null,null,null,null,"搭載車両"]
[]
[null,null,null,null,null,null,null,null,null,null,{"$f":"IF(デモ機手配依頼書!#REF!<>\"\",デモ機手配依頼書!#REF!,IF(デモ機手配依頼書!#REF!<>\"\",デモ機手配依頼書!#REF!,IF(デモ機手配依頼書!#REF!<>\"\",デモ機手配依頼書!#REF!,\"\")))","v":{"$error":"#REF!"}},null,null,null,null,null,null,null,null,{"$f":"IF(ISBLANK(デモ機手配依頼書!#REF!),\"\",LEFT(車載器種類,7))","v":{"$error":"#REF!"}},null,null,null,null,null,null,null,null,null,null,null,null,null,null,{"$f":"IF(ISBLANK(デモ機手配依頼書!#REF!),\"\",デモ機手配依頼書!#REF!)","v":{"$error":"#REF!"}}]
[null,null,null,null,null,null,null,null,null,null,{"$f":"IF(ISBLANK(デモ機手配依頼書!#REF!),\"\",デモ機手配依頼書!#REF!)","v":{"$error":"#REF!"}},null,null,null,null,null,null,null,null,{"$f":"IF(ISBLANK(デモ機手配依頼書!#REF!),\"\",LEFT(車載器種類,7))","v":{"$error":"#REF!"}},null,null,null,null,null,null,null,null,null,null,null,null,null,null,{"$f":"IF(ISBLANK(デモ機手配依頼書!#REF!),\"\",デモ機手配依頼書!#REF!)","v":{"$error":"#REF!"}}]
[null,null,null,null,null,null,null,null,null,null,{"$f":"IF(ISBLANK(デモ機手配依頼書!#REF!),\"\",デモ機手配依頼書!#REF!)","v":{"$error":"#REF!"}},null,null,null,null,null,null,null,null,{"$f":"IF(ISBLANK(デモ機手配依頼書!#REF!),\"\",LEFT(車載器種類,7))","v":{"$error":"#REF!"}},null,null,null,null,null,null,null,null,null,null,null,null,null,null,{"$f":"IF(ISBLANK(デモ機手配依頼書!#REF!),\"\",デモ機手配依頼書!#REF!)","v":{"$error":"#REF!"}}]
[null,null,null,null,null,null,null,null,null,null,{"$f":"IF(ISBLANK(デモ機手配依頼書!#REF!),\"\",デモ機手配依頼書!#REF!)","v":{"$error":"#REF!"}},null,null,null,null,null,null,null,null,{"$f":"IF(ISBLANK(デモ機手配依頼書!#REF!),\"\",LEFT(車載器種類,7))","v":{"$error":"#REF!"}},null,null,null,null,null,null,null,null,null,null,null,null,null,null,{"$f":"IF(ISBLANK(デモ機手配依頼書!#REF!),\"\",デモ機手配依頼書!#REF!)","v":{"$error":"#REF!"}}]
[null,null,null,null,null,null,null,null,null,null,{"$f":"IF(ISBLANK(デモ機手配依頼書!#REF!),\"\",デモ機手配依頼書!#REF!)","v":{"$error":"#REF!"}},null,null,null,null,null,null,null,null,{"$f":"IF(ISBLANK(デモ機手配依頼書!#REF!),\"\",LEFT(車載器種類,7))","v":{"$error":"#REF!"}},null,null,null,null,null,null,null,null,null,null,null,null,null,null,{"$f":"IF(ISBLANK(デモ機手配依頼書!#REF!),\"\",デモ機手配依頼書!#REF!)","v":{"$error":"#REF!"}}]
[null,null,null,null,null,null,null,null,null,null,{"$f":"IF(ISBLANK(デモ機手配依頼書!#REF!),\"\",デモ機手配依頼書!#REF!)","v":{"$error":"#REF!"}},null,null,null,null,null,null,null,null,{"$f":"IF(ISBLANK(デモ機手配依頼書!#REF!),\"\",LEFT(車載器種類,7))","v":{"$error":"#REF!"}},null,null,null,null,null,null,null,null,null,null,null,null,null,null,{"$f":"IF(ISBLANK(デモ機手配依頼書!#REF!),\"\",デモ機手配依頼書!#REF!)","v":{"$error":"#REF!"}}]
[null,null,null,null,null,null,null,null,null,null,{"$f":"IF(ISBLANK(デモ機手配依頼書!#REF!),\"\",デモ機手配依頼書!#REF!)","v":{"$error":"#REF!"}},null,null,null,null,null,null,null,null,{"$f":"IF(ISBLANK(デモ機手配依頼書!#REF!),\"\",LEFT(車載器種類,7))","v":{"$error":"#REF!"}},null,null,null,null,null,null,null,null,null,null,null,null,null,null,{"$f":"IF(ISBLANK(デモ機手配依頼書!#REF!),\"\",デモ機手配依頼書!#REF!)","v":{"$error":"#REF!"}}]
[null,null,null,null,null,null,null,null,null,null,{"$f":"IF(ISBLANK(デモ機手配依頼書!#REF!),\"\",デモ機手配依頼書!#REF!)","v":{"$error":"#REF!"}},null,null,null,null,null,null,null,null,{"$f":"IF(ISBLANK(デモ機手配依頼書!#REF!),\"\",LEFT(車載器種類,7))","v":{"$error":"#REF!"}},null,null,null,null,null,null,null,null,null,null,null,null,null,null,{"$f":"IF(ISBLANK(デモ機手配依頼書!#REF!),\"\",デモ機手配依頼書!#REF!)","v":{"$error":"#REF!"}}]
[null,null,null,null,null,null,null,null,null,null,{"$f":"IF(ISBLANK(デモ機手配依頼書!#REF!),\"\",デモ機手配依頼書!#REF!)","v":{"$error":"#REF!"}},null,null,null,null,null,null,null,null,{"$f":"IF(ISBLANK(デモ機手配依頼書!#REF!),\"\",LEFT(車載器種類,7))","v":{"$error":"#REF!"}},null,null,null,null,null,null,null,null,null,null,null,null,null,null,{"$f":"IF(ISBLANK(デモ機手配依頼書!#REF!),\"\",デモ機手配依頼書!#REF!)","v":{"$error":"#REF!"}}]
[null,null,null,null,null,null,null,null,null,null,{"$f":"IF(ISBLANK(デモ機手配依頼書!#REF!),\"\",デモ機手配依頼書!#REF!)","v":{"$error":"#REF!"}},null,null,null,null,null,null,null,null,{"$f":"IF(ISBLANK(デモ機手配依頼書!#REF!),\"\",LEFT(車載器種類,7))","v":{"$error":"#REF!"}},null,null,null,null,null,null,null,null,null,null,null,null,null,null,{"$f":"IF(ISBLANK(デモ機手配依頼書!#REF!),\"\",デモ機手配依頼書!#REF!)","v":{"$error":"#REF!"}}]
[null,null,null,null,null,null,null,null,null,null,{"$f":"IF(ISBLANK(デモ機手配依頼書!#REF!),\"\",デモ機手配依頼書!#REF!)","v":{"$error":"#REF!"}},null,null,null,null,null,null,null,null,{"$f":"IF(ISBLANK(デモ機手配依頼書!#REF!),\"\",LEFT(車載器種類,7))","v":{"$error":"#REF!"}},null,null,null,null,null,null,null,null,null,null,null,null,null,null,{"$f":"IF(ISBLANK(デモ機手配依頼書!#REF!),\"\",デモ機手配依頼書!#REF!)","v":{"$error":"#REF!"}}]
[null,null,null,null,null,null,null,null,null,null,{"$f":"IF(ISBLANK(デモ機手配依頼書!#REF!),\"\",デモ機手配依頼書!#REF!)","v":{"$error":"#REF!"}},null,null,null,null,null,null,null,null,{"$f":"IF(ISBLANK(デモ機手配依頼書!#REF!),\"\",LEFT(車載器種類,7))","v":{"$error":"#REF!"}},null,null,null,null,null,null,null,null,null,null,null,null,null,null,{"$f":"IF(ISBLANK(デモ機手配依頼書!#REF!),\"\",デモ機手配依頼書!#REF!)","v":{"$error":"#REF!"}}]
[null,null,null,null,null,null,null,null,null,null,{"$f":"IF(ISBLANK(デモ機手配依頼書!#REF!),\"\",デモ機手配依頼書!#REF!)","v":{"$error":"#REF!"}},null,null,null,null,null,null,null,null,{"$f":"IF(ISBLANK(デモ機手配依頼書!#REF!),\"\",LEFT(車載器種類,7))","v":{"$error":"#REF!"}},null,null,null,null,null,null,null,null,null,null,null,null,null,null,{"$f":"IF(ISBLANK(デモ機手配依頼書!#REF!),\"\",デモ機手配依頼書!#REF!)","v":{"$error":"#REF!"}}]
[null,null,null,null,null,null,null,null,null,null,{"$f":"IF(ISBLANK(デモ機手配依頼書!#REF!),\"\",デモ機手配依頼書!#REF!)","v":{"$error":"#REF!"}},null,null,null,null,null,null,null,null,{"$f":"IF(ISBLANK(デモ機手配依頼書!#REF!),\"\",LEFT(車載器種類,7))","v":{"$error":"#REF!"}},null,null,null,null,null,null,null,null,null,null,null,null,null,null,{"$f":"IF(ISBLANK(デモ機手配依頼書!#REF!),\"\",デモ機手配依頼書!#REF!)","v":{"$error":"#REF!"}}]
[null,null,null,null,null,null,null,null,null,null,{"$f":"IF(ISBLANK(デモ機手配依頼書!#REF!),\"\",デモ機手配依頼書!#REF!)","v":{"$error":"#REF!"}},null,null,null,null,null,null,null,null,{"$f":"IF(ISBLANK(デモ機手配依頼書!#REF!),\"\",LEFT(車載器種類,7))","v":{"$error":"#REF!"}},null,null,null,null,null,null,null,null,null,null,null,null,null,null,{"$f":"IF(ISBLANK(デモ機手配依頼書!#REF!),\"\",デモ機手配依頼書!#REF!)","v":{"$error":"#REF!"}}]
[null,null,null,null,null,null,null,null,null,null,{"$f":"IF(ISBLANK(デモ機手配依頼書!#REF!),\"\",デモ機手配依頼書!#REF!)","v":{"$error":"#REF!"}},null,null,null,null,null,null,null,null,{"$f":"IF(ISBLANK(デモ機手配依頼書!#REF!),\"\",LEFT(車載器種類,7))","v":{"$error":"#REF!"}},null,null,null,null,null,null,null,null,null,null,null,null,null,null,{"$f":"IF(ISBLANK(デモ機手配依頼書!#REF!),\"\",デモ機手配依頼書!#REF!)","v":{"$error":"#REF!"}}]
[null,null,null,null,null,null,null,null,null,null,{"$f":"IF(ISBLANK(デモ機手配依頼書!#REF!),\"\",デモ機手配依頼書!#REF!)","v":{"$error":"#REF!"}},null,null,null,null,null,null,null,null,{"$f":"IF(ISBLANK(デモ機手配依頼書!#REF!),\"\",LEFT(車載器種類,7))","v":{"$error":"#REF!"}},null,null,null,null,null,null,null,null,null,null,null,null,null,null,{"$f":"IF(ISBLANK(デモ機手配依頼書!#REF!),\"\",デモ機手配依頼書!#REF!)","v":{"$error":"#REF!"}}]
[null,null,null,null,null,null,null,null,null,null,{"$f":"IF(ISBLANK(デモ機手配依頼書!#REF!),\"\",デモ機手配依頼書!#REF!)","v":{"$error":"#REF!"}},null,null,null,null,null,null,null,null,{"$f":"IF(ISBLANK(デモ機手配依頼書!#REF!),\"\",LEFT(車載器種類,7))","v":{"$error":"#REF!"}},null,null,null,null,null,null,null,null,null,null,null,null,null,null,{"$f":"IF(ISBLANK(デモ機手配依頼書!#REF!),\"\",デモ機手配依頼書!#REF!)","v":{"$error":"#REF!"}}]
[null,null,null,null,null,null,null,null,null,null,{"$f":"IF(ISBLANK(デモ機手配依頼書!#REF!),\"\",デモ機手配依頼書!#REF!)","v":{"$error":"#REF!"}},null,null,null,null,null,null,null,null,{"$f":"IF(ISBLANK(デモ機手配依頼書!#REF!),\"\",LEFT(車載器種類,7))","v":{"$error":"#REF!"}},null,null,null,null,null,null,null,null,null,null,null,null,null,null,{"$f":"IF(ISBLANK(デモ機手配依頼書!#REF!),\"\",デモ機手配依頼書!#REF!)","v":{"$error":"#REF!"}}]
[null,null,null,null,null,null,null,null,null,null,{"$f":"IF(ISBLANK(デモ機手配依頼書!#REF!),\"\",デモ機手配依頼書!#REF!)","v":{"$error":"#REF!"}},null,null,null,null,null,null,null,null,{"$f":"IF(ISBLANK(デモ機手配依頼書!#REF!),\"\",LEFT(車載器種類,7))","v":{"$error":"#REF!"}},null,null,null,null,null,null,null,null,null,null,null,null,null,null,{"$f":"IF(ISBLANK(デモ機手配依頼書!#REF!),\"\",デモ機手配依頼書!#REF!)","v":{"$error":"#REF!"}}]
[null,null,null,null,null,null,null,null,null,null,{"$f":"IF(ISBLANK(デモ機手配依頼書!#REF!),\"\",デモ機手配依頼書!#REF!)","v":{"$error":"#REF!"}},null,null,null,null,null,null,null,null,{"$f":"IF(ISBLANK(デモ機手配依頼書!#REF!),\"\",LEFT(車載器種類,7))","v":{"$error":"#REF!"}},null,null,null,null,null,null,null,null,null,null,null,null,null,null,{"$f":"IF(ISBLANK(デモ機手配依頼書!#REF!),\"\",デモ機手配依頼書!#REF!)","v":{"$error":"#REF!"}}]
[null,null,null,null,null,null,null,null,null,null,{"$f":"IF(ISBLANK(デモ機手配依頼書!#REF!),\"\",デモ機手配依頼書!#REF!)","v":{"$error":"#REF!"}},null,null,null,null,null,null,null,null,{"$f":"IF(ISBLANK(デモ機手配依頼書!#REF!),\"\",LEFT(車載器種類,7))","v":{"$error":"#REF!"}},null,null,null,null,null,null,null,null,null,null,null,null,null,null,{"$f":"IF(ISBLANK(デモ機手配依頼書!#REF!),\"\",デモ機手配依頼書!#REF!)","v":{"$error":"#REF!"}}]
[null,null,null,null,null,null,null,null,null,null,{"$f":"IF(ISBLANK(デモ機手配依頼書!#REF!),\"\",デモ機手配依頼書!#REF!)","v":{"$error":"#REF!"}},null,null,null,null,null,null,null,null,{"$f":"IF(ISBLANK(デモ機手配依頼書!#REF!),\"\",LEFT(車載器種類,7))","v":{"$error":"#REF!"}},null,null,null,null,null,null,null,null,null,null,null,null,null,null,{"$f":"IF(ISBLANK(デモ機手配依頼書!#REF!),\"\",デモ機手配依頼書!#REF!)","v":{"$error":"#REF!"}}]
[null,null,null,null,null,null,null,null,null,null,{"$f":"IF(ISBLANK(デモ機手配依頼書!#REF!),\"\",デモ機手配依頼書!#REF!)","v":{"$error":"#REF!"}},null,null,null,null,null,null,null,null,{"$f":"IF(ISBLANK(デモ機手配依頼書!#REF!),\"\",LEFT(車載器種類,7))","v":{"$error":"#REF!"}},null,null,null,null,null,null,null,null,null,null,null,null,null,null,{"$f":"IF(ISBLANK(デモ機手配依頼書!#REF!),\"\",デモ機手配依頼書!#REF!)","v":{"$error":"#REF!"}}]

{"sheet":"ワークシート","index":2,"n_rows":35,"n_cols":5,"rows_kept":35,"cut":false,"hidden":true,"merged":[]}
["■増設・入替区分"]
[null,"Drive Cloud＋新規取引","Drive Cloud＋の増設","旧型車載器からの代替","お客様の保有車載器を使用"]
[]
["■車載器発注方法"]
[null,"通常発注","未完発注"]
[]
["■回収方法"]
[null,"一括回収","分割回収","リース料に含める"]
[null,null,null,"リースイン"]
["■有無"]
[null,"無","有"]
[]
["■納入方法",null,null,"（入力シート＜包括＞ガイド用）","（見積書＜個別＞ガイド用）"]
[null,"個別","包括","←「包括明細」を添付すること！","※見積有効期限は、本書日付後３０日限りです。"]
[]
[]
["■紹介手数料",null,"■新規・増設・入替区分別コメント"]
["※　営業部用参考（リスマネ部確認対象外）",null,"Drive Cloud＋新規取引","Drive Cloud＋を使用するには顧客のIT環境が対応可能か事前にご確認下さい。"]
[null,"紹介手数料（税別）:","Drive Cloud＋の増設"," "]
[null,"紹介手数料込の原価合計（税別）:","旧型車載器からの代替","To テレマ運用課：Drive Cloud＋の車両情報は新規作成せず、車載器情報の変更のみとして下さい。"]
[null,"紹介先:","お客様の保有車載器を使用"," "]
[]
["■支払パターン"]
[null,"利用開始月の末日から甲指定の預金口座に振込払（振込手数料は乙負担）","利用開始月の末日に甲指定の預金口座に振込払（振込手数料は乙負担）"]
[null,"利用開始月翌月の末日から甲指定の預金口座に振込払（振込手数料は乙負担）","利用開始月翌月の末日に甲指定の預金口座に振込払（振込手数料は乙負担）"]
[null,"利用開始月翌々月の末日から甲指定の預金口座に振込払（振込手数料は乙負担）","利用開始月翌々月の末日に甲指定の預金口座に振込払（振込手数料は乙負担）"]
[null,"利用開始月翌月の末日から甲指定の預金口座に振込払（振込手数料は乙負担）\n但し、初回に限り支払額は上記「１回目」「２回目以降」記載の利用用金合計額とする","利用開始月翌月の末日から甲指定の預金口座に振込払（振込手数料は乙負担）\n但し、初回に限り支払額は上記「１回目」「２回目以降」記載の利用用金合計額とする"]
[null,"利用開始月翌々月の末日から甲指定の預金口座に振込払（振込手数料は乙負担）\n但し、初回に限り支払額は上記「１回目」「２回目以降」記載の利用用金合計額とする","利用開始月翌々月の末日から甲指定の預金口座に振込払（振込手数料は乙負担）\n但し、初回に限り支払額は上記「１回目」「２回目以降」記載の利用用金合計額とする"]
[null,"利用開始月３ヵ月後の末日から甲指定の預金口座に振込払（振込手数料は乙負担）\n但し、初回に限り支払額は上記「１回目」「２回目以降」記載の利用用金合計額とする","利用開始月３ヵ月後の末日から甲指定の預金口座に振込払（振込手数料は乙負担）\n但し、初回に限り支払額は上記「１回目」「２回目以降」記載の利用用金合計額とする"]
[null,{"$f":"\"利用開始月の\"& DAY(#REF!) &\"日に乙指定の乙名義預金口座から口座振替\"","v":{"$error":"#REF!"}},{"$f":"\"利用開始月の\" & DAY(#REF!) & \"日に乙指定の乙名義預金口座から口座振替\"","v":{"$error":"#REF!"}}]
[null,{"$f":"\"利用開始月翌月の\" & DAY(#REF!) & \"日に乙指定の乙名義預金口座から口座振替\"","v":{"$error":"#REF!"}},{"$f":"\"利用開始月翌月の\" & DAY(#REF!) & \"日に乙指定の乙名義預金口座から口座振替\"","v":{"$error":"#REF!"}}]
[null,{"$f":"\"利用開始月翌々月の\" & DAY(#REF!) & \"日に乙指定の乙名義預金口座から口座振替\"","v":{"$error":"#REF!"}},{"$f":"\"利用開始月翌々月の\" & DAY(#REF!) & \"日に乙指定の乙名義預金口座から口座振替\"","v":{"$error":"#REF!"}}]
[null,{"$f":"\"利用開始月翌月の\" & DAY(#REF!) & \"日に乙指定の乙名義預金口座から口座振替\n但し、初回に限り支払額は上記「１回目」「２回目以降」記載の利用用金合計額とする\"","v":{"$error":"#REF!"}},{"$f":"\"利用開始月翌月の\" & DAY(#REF!) & \"日に乙指定の乙名義預金口座から口座振替\n但し、初回に限り支払額は上記「１回目」「２回目以降」記載の利用用金合計額とする\"","v":{"$error":"#REF!"}}]
[null,{"$f":"\"利用開始月翌々月の\" & DAY(#REF!) & \"日に乙指定の乙名義預金口座から口座振替\n但し、初回に限り支払額は上記「１回目」「２回目以降」記載の利用用金合計額とする\"","v":{"$error":"#REF!"}},{"$f":"\"利用開始月翌々月の\" & DAY(#REF!) & \"日に乙指定の乙名義預金口座から口座振替\n但し、初回に限り支払額は上記「１回目」「２回目以降」記載の利用用金合計額とする\"","v":{"$error":"#REF!"}}]
[null,{"$f":"\"利用開始月３ヵ月後の\" & DAY(#REF!) & \"日に乙指定の乙名義預金口座から口座振替\n但し、初回に限り支払額は上記「１回目」「２回目以降」記載の利用用金合計額とする\"","v":{"$error":"#REF!"}},{"$f":"\"利用開始月３ヵ月後の\" & DAY(#REF!) & \"日に乙指定の乙名義預金口座から口座振替\n但し、初回に限り支払額は上記「１回目」「２回目以降」記載の利用用金合計額とする\"","v":{"$error":"#REF!"}}]

{"sheet":"所属部課","index":3,"n_rows":45,"n_cols":10,"rows_kept":45,"cut":false,"hidden":true,"merged":[]}
["部支店名","拠点名","郵便番号","住所","建物名","代表電話番号","FAX番号","契約書-押印役職名","部長名","担当チーム"]
["営業一部営業一課","本社","108-8411","東京都港区芝５丁目３４番７号","田町センタービル","03-5476-0204","03-5476-2596","営業一部長  ","岩崎　勲","A"]
["営業一部営業二課","本社","108-8411","東京都港区芝５丁目３４番７号","田町センタービル","03-5476-0204","03-5476-2596","営業一部長  ","岩崎　勲","A"]
["営業一部営業三課","本社","108-8411","東京都港区芝５丁目３４番７号","田町センタービル","03-5476-0242","03-5476-2596","営業一部長  ","岩崎　勲","A"]
["営業二部営業一課","本社","108-8411","東京都港区芝５丁目３４番７号","田町センタービル","03-5476-0104","03-5476-2596","営業二部長","松浦　正佳","B"]
["営業二部営業二課","本社","108-8411","東京都港区芝５丁目３４番７号","田町センタービル","03-5476-9407","03-5476-2596","営業二部長","松浦　正佳","B"]
["営業二部営業推進課","本社","108-8411","東京都港区芝５丁目３４番７号","田町センタービル","03-5476-0104","03-5476-2596","営業二部長","松浦　正佳","B"]
["営業三部営業一課","本社","108-8411","東京都港区芝５丁目３４番７号","田町センタービル","03-5476-0133","03-3455-4713","営業三部長","粕谷　幸司","A"]
["営業三部営業二課","本社","108-8411","東京都港区芝５丁目３４番７号","田町センタービル","03-5476-0133","03-3455-4713","営業三部長","粕谷　幸司","A"]
["営業三部営業三課","本社","108-8411","東京都港区芝５丁目３４番７号","田町センタービル","03-5476-0133","03-3455-4713","営業三部長","粕谷　幸司","A"]
["営業四部営業一課","本社","108-8411","東京都港区芝５丁目３４番７号","田町センタービル","03-5476-0229","03-3455-4712","営業四部長 ","井崎　淳","B"]
["営業四部営業二課","本社","108-8411","東京都港区芝５丁目３４番７号","田町センタービル","03-5476-0229","03-3455-4712","営業四部長 ","井崎　淳","B"]
["営業四部営業三課","本社","108-8411","東京都港区芝５丁目３４番７号","田町センタービル","03-5476-0229","03-3455-4712","営業四部長 ","井崎　淳","B"]
["営業五部営業一課","本社","108-8411","東京都港区芝５丁目３４番７号","田町センタービル","03-5476-0236","03-3455-4712","営業五部長","倉田　陽一","A"]
["営業五部営業二課","本社","108-8411","東京都港区芝５丁目３４番７号","田町センタービル","03-5476-0236","03-3455-4712","営業五部長","朝川","A"]
["営業六部営業課","本社","108-8411","東京都港区芝５丁目３４番７号","田町センタービル","03-5476-0105","03-3455-4712","営業六部長 ","高橋　義弘","B"]
["提携営業部","本社","108-8411","東京都港区芝５丁目３４番７号","田町センタービル","03-5476-0239","03-5476-6432","提携営業部長","小峰　哲","B"]
["提携営業部提携営業課","本社","108-8411","東京都港区芝５丁目３４番７号","田町センタービル","03-5476-0239","03-5476-6432","提携営業部長","　　","B"]
["北海道支店営業課","北海道支店","060-0005","北海道札幌市中央区北五条西６丁目２番","札幌センタービル","011-222-4139","011-261-7466","北海道支店長","金子　誠一","A"]
["東北支店営業一課","東北支店","980-0803","宮城県仙台市青葉区国分町３丁目６番１号","仙台パークビル","022-711-7030","022-711-7025","東北支店長","阿竹　文彦","A"]
["東北支店営業二課","東北支店","980-0803","宮城県仙台市青葉区国分町３丁目６番１号","仙台パークビル","022-711-7030","022-711-7025","東北支店長","阿竹　文彦","A"]
["さいたま支店営業一課","さいたま支店","330-0854","埼玉県さいたま市大宮区桜木町１丁目１１番３号","八十二大宮ビル７階","048-650-0072","048-644-2035","さいたま支店長","橋本　数仁","A"]
["さいたま支店営業二課","さいたま支店","330-0854","埼玉県さいたま市大宮区桜木町１丁目１１番３号","八十二大宮ビル７階","048-650-0072","048-644-2035","さいたま支店長","橋本　数仁","A"]
["千葉支店営業課","千葉支店","260-0028","千葉県千葉市中央区新町１丁目１７番","JPR千葉ビル10階","043-382-2960","043-382-2965","千葉支店長","丸山　和弘","A"]
["横浜支店営業一課","横浜支店","220-0004","神奈川県横浜市西区北幸１丁目１１番５号","相鉄ＫＳビル７階","045-279-2730","045-279-2735","横浜支店長","大内　直也","A"]
["横浜支店営業二課","横浜支店","220-0004","神奈川県横浜市西区北幸１丁目１１番５号","相鉄ＫＳビル７階","045-279-2730","045-279-2735","横浜支店長","大内　直也","A"]
["名古屋営業一部営業一課","中部営業本部","460-0002","愛知県名古屋市中区丸の内３丁目２２番２４号","名古屋桜通ビル２階","052-950-0234","052-971-6052","名古屋営業一部長","宮治　厚喜","A"]
["名古屋営業一部営業二課","中部営業本部","460-0002","愛知県名古屋市中区丸の内３丁目２２番２４号","名古屋桜通ビル２階","052-950-0234","052-971-6052","名古屋営業一部長","宮治　厚喜","A"]
["名古屋営業一部営業推進課","中部営業本部","460-0002","愛知県名古屋市中区丸の内３丁目２２番２４号","名古屋桜通ビル２階","052-950-0234","052-971-6052","名古屋営業一部長","宮治　厚喜","A"]
["名古屋営業二部営業一課","中部営業本部","460-0002","愛知県名古屋市中区丸の内３丁目２２番２４号","名古屋桜通ビル２階","052-950-0236","052-971-6052","名古屋営業二部長","大木　昌彦","A"]
["名古屋営業二部営業二課","中部営業本部","460-0002","愛知県名古屋市中区丸の内３丁目２２番２４号","名古屋桜通ビル２階","052-950-0236","052-971-6052","名古屋営業二部長","大木　昌彦","A"]
["静岡支店営業課","静岡支店","420-0859","静岡県静岡市葵区栄町４丁目１０番","静岡栄町ビル2階","054-653-5161","054-251-8563","静岡支店長","岩月　重雄","A"]
["北陸支店営業課","北陸支店","920-0961","石川県金沢市香林坊２丁目３番２５号","金沢青葉ビル3階","076-262-1017","076-262-1028","北陸支店長","平田　康子","A"]
["大阪営業一部営業一課","西日本営業本部","541-0044","大阪府大阪市中央区伏見町４丁目１番１号","明治安田生命大阪御堂筋ビル４階","06-7222-3301","06-7222-3310","大阪営業一部長","海老原　正浩","B"]
["大阪営業一部営業二課","西日本営業本部","541-0044","大阪府大阪市中央区伏見町４丁目１番１号","明治安田生命大阪御堂筋ビル４階","06-7222-3301","06-7222-3310","大阪営業一部長","海老原　正浩","B"]
["大阪営業一部営業三課","西日本営業本部","541-0044","大阪府大阪市中央区伏見町４丁目１番１号","明治安田生命大阪御堂筋ビル４階","06-7222-3301","06-7222-3310","大阪営業一部長","海老原　正浩","B"]
["大阪営業二部営業一課","西日本営業本部","541-0044","大阪府大阪市中央区伏見町４丁目１番１号","明治安田生命大阪御堂筋ビル４階","06-7222-3302","06-7222-3311","大阪営業二部長","岩出　誠","B"]
["大阪営業二部営業二課","西日本営業本部","541-0044","大阪府大阪市中央区伏見町４丁目１番１号","明治安田生命大阪御堂筋ビル４階","06-7222-3302","06-7222-3311","大阪営業二部長","岩出　誠","B"]
["京都支店営業課","京都支店","600-8008","京都府京都市下京区四条通烏丸東入長刀鉾町１０番","京都ダイヤビル８階","075-283-0260","075-283-0265","京都支店長","大澤　敏雄","B"]
["神戸支店営業課","神戸支店","650-0036","兵庫県神戸市中央区播磨町４９番","神戸旧居留地平和ビル４階","078-325-3530","078-389-5335","神戸支店長","秋元　光浩","B"]
["岡山支店営業課","岡山支店","700-0904","岡山県岡山市北区柳町１丁目１番２７号","太陽生命岡山柳町ビル４階","086-280-9880","086-280-9885","岡山支店長","三木　一馬","B"]
["広島支店営業課","広島支店","730-0035","広島県広島市中区本通７丁目１９番","広島ダイヤモンドビル９階","082-546-0351","082-541-0582","広島支店長","佐溝　恭","B"]
["九州支店営業一課","九州支店","812-0039","福岡県福岡市博多区冷泉町４番１７号","博多祇園NKビル3階","092-292-6250","092-686-2733","九州支店長","河内　一人","B"]
["九州支店営業二課","九州支店","812-0039","福岡県福岡市博多区冷泉町４番１７号","博多祇園NKビル3階","092-292-6250","092-686-2733","九州支店長","河内　一人","B"]
["市場開発部","本社","108-8411","東京都港区芝５丁目３４番７号","田町センタービル","03-5476-0101","03-3455-4711","市場開発部長","涌井　賢輔"]

{"sheet":"価格表","index":4,"n_rows":69,"n_cols":10,"rows_kept":69,"cut":false,"hidden":true,"merged":[[27,2,27,3],[27,4,27,5],[27,6,27,7],[27,8,27,9]]}
["■車載器本体代"]
[null,"車載器機種","仕入原価","標準価格","結線・非結線","通信・非通信","メッセージ","メッセージ","メッセージ"]
[null,"非結線タイプ",27000,33000,0,1,"←非結線のため「無」にすること！",null,"サービス開始希望日の前々月末日までに発注依頼が必要です。"]
[null,"簡易結線タイプ",28600,34800,1,1,"　",null,"サービス開始希望日の前々月15日頃までに発注依頼が必要です。"]
[null,null,null,null,null,null,null,null,"サービス開始希望日の前々月15日頃までに発注依頼が必要です。"]
[null,"結線タイプ",40600,48300,1,1,"　"," "]
[]
[]
[]
[]
[]
[]
[]
["■ASP利用料"]
[null,"車載器機種","仕入原価","標準価格"]
[null,"スマホ認証無し",1600,2100,"→黄色部分だけメンテナンス"]
[]
[null,"スマホ認証あり",1670,2100]
[null,null,{"$f":"C18","v":1670},2200]
[]
[]
[]
[]
[]
[]
[]
["■取付工事費用"]
[null,null,"簡易結線",null,"追加カメラあり",null,"結線",null,"結線追加カメラあり"]
[null,"車載器","仕入原価","標準価格","仕入原価","標準価格","仕入原価","標準価格","仕入原価","標準価格"]
[null,"結線タイプ",7500,10000,11300,13000,18000,22000,21200,25000]
[null,"取り外し工事あり",16500,20000,20300,23000,27000,32000,28000,35000]
["■追加カメラ"]
[null,"商品名","仕入原価","標準価格"]
[null,"無",0,0]
[null,"バックカメラ",12000,13500]
[null,"室内カメラ",16000,18000]
["■SDカード16GB"]
[null,null,"仕入原価","標準価格"]
[null,null,1047,2300]
[]
["■取付部材"]
[null,null,"仕入原価"]
[null,null,2000]
[]
["■その他消耗品"]
[null,null,"仕入原価","標準価格"]
[null,"本体取付用シール",800,1000]
[]
["■消費税率",0.1]
[]
[]
["■印紙税",9999,200]
[null,1000000,400]
[null,2000000,1000]
[null,3000000,2000]
[null,5000000,10000]
[null,10000000,20000]
[null,50000000,60000]
[]
[]
[]
[]
[]
[]
[]
[]
[]
[]
[null,null,null,{"$f":"VLOOKUP(D26,価格表!B34:D36,2,FALSE)","v":{"$error":"#N/A"}}]

{"sheet":"価格表（割賦）","index":5,"n_rows":31,"n_cols":9,"rows_kept":31,"cut":false,"hidden":true,"merged":[]}
[]
[null,12,2]
[null,24,3]
[null,36,4]
[null,48,5]
[null,60,6]
[null,72,7]
[]
[null,"割賦月額下限",2,3,4,5,6,7]
[null,"車載器機種","12ヶ月","24ヶ月","36ヶ月","48ヶ月","60ヶ月","72ヶ月","一括"]
[null,"料率",8.4699999999999998E-2,4.3099999999999999E-2,2.92E-2,2.23E-2,1.8200000000000001E-2,null,1.006]
[null,"非結線タイプ",{"$f":"IF(#REF!=\"有\",ROUND(#REF!*'価格表（割賦）'!$C$11,-1),ROUND(価格表!$C3*'価格表（割賦）'!$C$11,-1))","v":{"$error":"#REF!"}},{"$f":"IF(#REF!=\"有\",ROUND(#REF!*'価格表（割賦）'!$D$11,-1),ROUND(価格表!$C3*'価格表（割賦）'!$D$11,-1))","v":{"$error":"#REF!"}},{"$f":"IF(#REF!=\"有\",ROUND(#REF!*'価格表（割賦）'!$E$11,-1),ROUND(価格表!$C3*'価格表（割賦）'!$E$11,-1))","v":{"$error":"#REF!"}},{"$f":"IF(#REF!=\"有\",ROUND(#REF!*'価格表（割賦）'!$F$11,-1),ROUND(価格表!$C3*'価格表（割賦）'!$F$11,-1))","v":{"$error":"#REF!"}},{"$f":"IF(#REF!=\"有\",ROUND(#REF!*'価格表（割賦）'!$G$11,-1),ROUND(価格表!$C3*'価格表（割賦）'!$G$11,-1))","v":{"$error":"#REF!"}},null,{"$f":"IF(#REF!=\"有\",ROUND(#REF!*'価格表（割賦）'!$I$11,-1),ROUND(価格表!$C3*'価格表（割賦）'!$I$11,-1))","v":{"$error":"#REF!"}}]
[null,"簡易結線タイプ",{"$f":"IF(#REF!=\"有\",ROUND(#REF!*'価格表（割賦）'!$C$11,-1),ROUND(価格表!$C4*'価格表（割賦）'!$C$11,-1))","v":{"$error":"#REF!"}},{"$f":"IF(#REF!=\"有\",ROUND(#REF!*'価格表（割賦）'!$D$11,-1),ROUND(価格表!$C4*'価格表（割賦）'!$D$11,-1))","v":{"$error":"#REF!"}},{"$f":"IF(#REF!=\"有\",ROUND(#REF!*'価格表（割賦）'!$E$11,-1),ROUND(価格表!$C4*'価格表（割賦）'!$E$11,-1))","v":{"$error":"#REF!"}},{"$f":"IF(#REF!=\"有\",ROUND(#REF!*'価格表（割賦）'!$F$11,-1),ROUND(価格表!$C4*'価格表（割賦）'!$F$11,-1))","v":{"$error":"#REF!"}},{"$f":"IF(#REF!=\"有\",ROUND(#REF!*'価格表（割賦）'!$G$11,-1),ROUND(価格表!$C4*'価格表（割賦）'!$G$11,-1))","v":{"$error":"#REF!"}},null,{"$f":"IF(#REF!=\"有\",ROUND(#REF!*'価格表（割賦）'!$I$11,-1),ROUND(価格表!$C4*'価格表（割賦）'!$I$11,-1))","v":{"$error":"#REF!"}}]
[null,null,{"$f":"IF(#REF!=\"有\",ROUND(#REF!*'価格表（割賦）'!$C$11,-1),ROUND(価格表!$C5*'価格表（割賦）'!$C$11,-1))","v":{"$error":"#REF!"}},{"$f":"IF(#REF!=\"有\",ROUND(#REF!*'価格表（割賦）'!$D$11,-1),ROUND(価格表!$C5*'価格表（割賦）'!$D$11,-1))","v":{"$error":"#REF!"}},{"$f":"IF(#REF!=\"有\",ROUND(#REF!*'価格表（割賦）'!$E$11,-1),ROUND(価格表!$C5*'価格表（割賦）'!$E$11,-1))","v":{"$error":"#REF!"}},{"$f":"IF(#REF!=\"有\",ROUND(#REF!*'価格表（割賦）'!$F$11,-1),ROUND(価格表!$C5*'価格表（割賦）'!$F$11,-1))","v":{"$error":"#REF!"}},{"$f":"IF(#REF!=\"有\",ROUND(#REF!*'価格表（割賦）'!$G$11,-1),ROUND(価格表!$C5*'価格表（割賦）'!$G$11,-1))","v":{"$error":"#REF!"}},null,{"$f":"IF(#REF!=\"有\",ROUND(#REF!*'価格表（割賦）'!$I$11,-1),ROUND(価格表!$C5*'価格表（割賦）'!$I$11,-1))","v":{"$error":"#REF!"}}]
[null,"結線タイプ",{"$f":"IF(#REF!=\"有\",ROUND(#REF!*'価格表（割賦）'!$C$11,-1),ROUND(価格表!$C6*'価格表（割賦）'!$C$11,-1))","v":{"$error":"#REF!"}},{"$f":"IF(#REF!=\"有\",ROUND(#REF!*'価格表（割賦）'!$D$11,-1),ROUND(価格表!$C6*'価格表（割賦）'!$D$11,-1))","v":{"$error":"#REF!"}},{"$f":"IF(#REF!=\"有\",ROUND(#REF!*'価格表（割賦）'!$E$11,-1),ROUND(価格表!$C6*'価格表（割賦）'!$E$11,-1))","v":{"$error":"#REF!"}},{"$f":"IF(#REF!=\"有\",ROUND(#REF!*'価格表（割賦）'!$F$11,-1),ROUND(価格表!$C6*'価格表（割賦）'!$F$11,-1))","v":{"$error":"#REF!"}},{"$f":"IF(#REF!=\"有\",ROUND(#REF!*'価格表（割賦）'!$G$11,-1),ROUND(価格表!$C6*'価格表（割賦）'!$G$11,-1))","v":{"$error":"#REF!"}},null,{"$f":"IF(#REF!=\"有\",ROUND(#REF!*'価格表（割賦）'!$I$11,-1),ROUND(価格表!$C6*'価格表（割賦）'!$I$11,-1))","v":{"$error":"#REF!"}}]
[null,null,0,0,0,0,0,0,0]
[null,null,0,0,0,0,0,0,0]
[null,null,0,0,0,0,0,0,0]
[null,null,0,0,0,0,0,0,0]
[null,"堀場製（結線・非通信型）",0,0,0,0,0,0,0]
[null,"ユピテル製（非結線・非通信型）",0,0,0,0,0,0,0]
[null,"追加カメラ",{"$f":"ROUND(#REF!*'価格表（割賦）'!C$11,0)","v":{"$error":"#REF!"}},{"$f":"ROUND(#REF!*'価格表（割賦）'!D$11,0)","v":{"$error":"#REF!"}},{"$f":"ROUND(#REF!*'価格表（割賦）'!E$11,0)","v":{"$error":"#REF!"}},{"$f":"ROUND(#REF!*'価格表（割賦）'!F$11,0)","v":{"$error":"#REF!"}},{"$f":"ROUND(#REF!*'価格表（割賦）'!G$11,0)","v":{"$error":"#REF!"}},null,{"$f":"ROUND(#REF!*'価格表（割賦）'!I$11,0)","v":{"$error":"#REF!"}}]
["簡易結線取付工事",0,{"$f":"ROUND(価格表!$C30*'価格表（割賦）'!C$11,0)","v":635},{"$f":"ROUND(価格表!$C30*'価格表（割賦）'!D$11,0)","v":323},{"$f":"ROUND(価格表!$C30*'価格表（割賦）'!E$11,0)","v":219},{"$f":"ROUND(価格表!$C30*'価格表（割賦）'!F$11,0)","v":167},{"$f":"ROUND(価格表!$C30*'価格表（割賦）'!G$11,0)","v":137},null,{"$f":"ROUND(価格表!$C30*'価格表（割賦）'!I$11,0)","v":7545}]
["(取り外しあり)",1,{"$f":"ROUND(価格表!$C31*'価格表（割賦）'!C$11,0)","v":1398},{"$f":"ROUND(価格表!$C31*'価格表（割賦）'!D$11,0)","v":711},{"$f":"ROUND(価格表!$C31*'価格表（割賦）'!E$11,0)","v":482},{"$f":"ROUND(価格表!$C31*'価格表（割賦）'!F$11,0)","v":368},{"$f":"ROUND(価格表!$C31*'価格表（割賦）'!G$11,0)","v":300},null,{"$f":"ROUND(価格表!$C31*'価格表（割賦）'!I$11,0)","v":16599}]
["簡易結線取付工事カメラ有",2,{"$f":"ROUND(価格表!$E30*'価格表（割賦）'!C$11,0)","v":957},{"$f":"ROUND(価格表!$E30*'価格表（割賦）'!D$11,0)","v":487},{"$f":"ROUND(価格表!$E30*'価格表（割賦）'!E$11,0)","v":330},{"$f":"ROUND(価格表!$E30*'価格表（割賦）'!F$11,0)","v":252},{"$f":"ROUND(価格表!$E30*'価格表（割賦）'!G$11,0)","v":206},null,{"$f":"ROUND(価格表!$E30*'価格表（割賦）'!I$11,0)","v":11368}]
["(取り外しあり)",3,{"$f":"ROUND(価格表!$E31*'価格表（割賦）'!C$11,0)","v":1719},{"$f":"ROUND(価格表!$E31*'価格表（割賦）'!D$11,0)","v":875},{"$f":"ROUND(価格表!$E31*'価格表（割賦）'!E$11,0)","v":593},{"$f":"ROUND(価格表!$E31*'価格表（割賦）'!F$11,0)","v":453},{"$f":"ROUND(価格表!$E31*'価格表（割賦）'!G$11,0)","v":369},null,{"$f":"ROUND(価格表!$E31*'価格表（割賦）'!I$11,0)","v":20422}]
["結線取付工事",4,{"$f":"価格表!$H$30*'価格表（割賦）'!C11","v":1863.3999999999999},{"$f":"価格表!$H$30*'価格表（割賦）'!D11","v":948.19999999999993},{"$f":"価格表!$H$30*'価格表（割賦）'!E11","v":642.4},{"$f":"価格表!$H$30*'価格表（割賦）'!F11","v":490.6},{"$f":"価格表!$H$30*'価格表（割賦）'!G11","v":400.40000000000003},null,{"$f":"価格表!G30*'価格表（割賦）'!$I$11","v":18108}]
["(取り外しあり)",5,{"$f":"価格表!$H$31*'価格表（割賦）'!C11","v":2710.4},{"$f":"価格表!$H$31*'価格表（割賦）'!D11","v":1379.2},{"$f":"価格表!$H$31*'価格表（割賦）'!E11","v":934.4},{"$f":"価格表!$H$31*'価格表（割賦）'!F11","v":713.6},{"$f":"価格表!$H$31*'価格表（割賦）'!G11","v":582.4},null,{"$f":"価格表!G31*'価格表（割賦）'!$I$11","v":27162}]
["結線取付工事カメラ有",6,{"$f":"価格表!$J$30*'価格表（割賦）'!C11","v":2117.5},{"$f":"価格表!$J$30*'価格表（割賦）'!D11","v":1077.5},{"$f":"価格表!$J$30*'価格表（割賦）'!E11","v":730},{"$f":"価格表!$J$30*'価格表（割賦）'!F11","v":557.5},{"$f":"価格表!$J$30*'価格表（割賦）'!G11","v":455},null,{"$f":"価格表!J30*'価格表（割賦）'!$I$11","v":25150}]
["(取り外しあり)",7,{"$f":"価格表!$J$31*'価格表（割賦）'!C11","v":2964.5},{"$f":"価格表!$J$31*'価格表（割賦）'!D11","v":1508.5},{"$f":"価格表!$J$31*'価格表（割賦）'!E11","v":1022},{"$f":"価格表!$J$31*'価格表（割賦）'!F11","v":780.5},{"$f":"価格表!$J$31*'価格表（割賦）'!G11","v":637},null,{"$f":"価格表!J31*'価格表（割賦）'!$I$11","v":35210}]
[null,"追加費用",{"$f":"IF(#REF!=\"有\",ROUND(#REF!*'価格表（割賦）'!C$11,0),\"\")","v":{"$error":"#REF!"}},{"$f":"IF(#REF!=\"有\",ROUND(#REF!*'価格表（割賦）'!D$11,0),\"\")","v":{"$error":"#REF!"}},{"$f":"IF(#REF!=\"有\",ROUND(#REF!*'価格表（割賦）'!E$11,0),\"\")","v":{"$error":"#REF!"}},{"$f":"IF(#REF!=\"有\",ROUND(#REF!*'価格表（割賦）'!F$11,0),\"\")","v":{"$error":"#REF!"}},{"$f":"IF(#REF!=\"有\",ROUND(#REF!*'価格表（割賦）'!G$11,0),\"\")","v":{"$error":"#REF!"}},null,{"$f":"IF(#REF!=\"有\",ROUND(#REF!*'価格表（割賦）'!I$11,0),\"\")","v":{"$error":"#REF!"}}]

{"sheet":"見積書(総額表示有-作業用)","index":6,"n_rows":117,"n_cols":68,"rows_kept":117,"cut":false,"hidden":true,"merged":[[79,19,79,24],[79,25,79,27],[79,28,79,34],[79,35,79,40],[79,41,79,47],[79,48,79,52],[79,53,79,60],[79,61,79,66],[79,67,79,75],[78,53,78,60],[78,61,78,66],[78,67,78,75],[45,34,45,37],[45,38,45,48],[78,2,78,18],[78,19,78,24],[78,25,78,27],[78,28,78,34],[78,35,78,40],[78,41,78,47],[78,48,78,52],[74,48,77,52],[74,53,77,60],[74,61,77,66],[74,67,77,75],[70,48,73,52],[70,53,73,60],[70,61,73,66],[70,67,73,75],[74,35,77,40],[74,41,77,47],[61,38,63,48],[64,38,66,48],[68,1,69,1],[66,1,67,1],[64,1,65,1],[62,1,63,1],[45,6,45,23],[45,24,45,33],[86,1,87,1],[84,1,85,1],[82,1,83,1],[80,1,81,1],[72,1,73,1],[70,1,71,1],[76,2,77,18],[74,2,75,18],[74,19,77,24],[74,25,77,27],[74,28,77,34],[61,2,63,37],[64,2,66,37],[70,2,73,18],[70,19,73,24],[70,25,73,27],[70,28,73,34],[70,35,73,40],[95,2,95,14],[96,2,113,75],[115,2,115,33],[116,2,124,75],[88,41,90,47],[88,48,90,52],[88,53,90,60],[88,61,90,66],[88,67,90,75],[92,2,93,21],[88,2,90,18],[88,19,90,24],[88,25,90,27],[88,28,90,34],[88,35,90,40],[86,41,87,47],[86,48,87,52],[86,53,87,60],[86,61,87,66],[84,67,85,75],[86,2,87,18],[86,19,87,24],[86,25,87,27],[86,28,87,34],[86,35,87,40],[86,67,87,75],[84,2,85,18],[84,19,85,24],[84,25,85,27],[84,28,85,34],[84,35,85,40],[84,41,85,47],[84,48,85,52],[84,53,85,60],[84,61,85,66],[80,41,81,47],[80,48,81,52],[80,53,81,60],[80,61,81,66],[80,67,81,75],[82,2,83,18],[82,19,83,24],[82,25,83,27],[82,28,83,34],[82,35,83,40],[80,2,81,18],[80,19,81,24],[80,25,81,27],[80,28,81,34],[80,35,81,40],[82,41,83,47],[82,48,83,52],[82,53,83,60],[82,61,83,66],[82,67,83,75],[70,41,73,47],[56,2,57,5],[56,6,57,23],[56,24,57,33],[56,34,57,37],[56,38,57,48],[58,2,60,37],[58,38,60,48],[52,2,53,5],[52,6,53,23],[52,24,53,33],[52,34,53,37],[52,38,53,48],[54,2,55,5],[54,6,55,23],[54,24,55,33],[54,34,55,37],[54,38,55,48],[48,2,49,5],[48,6,49,23],[48,24,49,33],[48,34,49,37],[48,38,49,48],[50,2,51,5],[50,6,51,23],[50,24,51,33],[50,34,51,37],[50,38,51,48],[42,2,44,5],[42,6,44,23],[42,24,44,33],[42,34,44,37],[42,38,44,48],[46,2,47,5],[46,6,47,23],[46,24,47,33],[46,34,47,37],[46,38,47,48],[38,50,39,53],[38,54,39,61],[38,62,39,65],[38,66,39,74],[20,5,22,28],[23,5,25,28],[25,51,27,66],[28,50,29,51],[28,52,29,58],[30,50,31,75],[0,45,2,75],[3,0,9,75],[12,1,15,20],[12,21,15,28],[16,6,16,27],[17,5,19,28],[32,50,33,75],[34,50,35,75],[36,50,37,53],[36,54,37,68]]}
[null,null,null,null,null,null,null,null,null,null,null,null,null,null,null,null,null,null,null,null,null,null,null,null,null,null,null,null,null,null,null,null,null,null,null,null,null,null,null,null,null,null,null,null,null,{"$f":"TODAY()","v":"2021-03-29"}]
[]
[]
["ＭＡＬテレマティクスサービス利用御見積書"]
[]
[]
[]
[]
[]
[]
[]
[]
[null,{"$f":"#REF!","v":{"$error":"#REF!"}},null,null,null,null,null,null,null,null,null,null,null,null,null,null,null,null,null,null,null,"御中"]
[]
[]
[]
[]
[null,null,null,null,null,"毎度お引立てにあずかり厚く御礼申し上げます。"]
[]
[]
[null,null,null,null,null,"下記の通り御見積いたしますのでよろしく"]
[]
[]
[null,null,null,null,null,"ご検討賜わりますようお願い申し上げます。"]
[]
[null,null,null,null,null,null,null,null,null,null,null,null,null,null,null,null,null,null,null,null,null,null,null,null,null,null,null,null,null,null,null,null,null,null,null,null,null,null,null,null,null,null,null,null,null,null,null,null,null,null,null,"三菱オートリース株式会社"]
[]
[]
[null,null,null,null,null,null,null,null,null,null,null,null,null,null,null,null,null,null,null,null,null,null,null,null,null,null,null,null,null,null,null,null,null,null,null,null,null,null,null,null,null,null,null,null,null,null,null,null,null,null,"〒",null,{"$f":"#REF!","v":{"$error":"#REF!"}}]
[]
[null,null,null,null,null,null,null,null,null,null,null,null,null,null,null,null,null,null,null,null,null,null,null,null,null,null,null,null,null,null,null,null,null,null,null,null,null,null,null,null,null,null,null,null,null,null,null,null,null,null,{"$f":"#REF!","v":{"$error":"#REF!"}}]
[]
[null,null,null,null,null,null,null,null,null,null,null,null,null,null,null,null,null,null,null,null,null,null,null,null,null,null,null,null,null,null,null,null,null,null,null,null,null,null,null,null,null,null,null,null,null,null,null,null,null,null,"名古屋桜通ビル 2 階"]
[]
[null,null,null,null,null,null,null,null,null,null,null,null,null,null,null,null,null,null,null,null,null,null,null,null,null,null,null,null,null,null,null,null,null,null,null,null,null,null,null,null,null,null,null,null,null,null,null,null,null,null,{"$f":"#REF!","v":{"$error":"#REF!"}}]
[]
[null,null,null,null,null,null,null,null,null,null,null,null,null,null,null,null,null,null,null,null,null,null,null,null,null,null,null,null,null,null,null,null,null,null,null,null,null,null,null,null,null,null,null,null,null,null,null,null,null,null,"担当者",null,null,null,{"$f":"#REF!","v":{"$error":"#REF!"}}]
[]
[null,null,null,null,null,null,null,null,null,null,null,null,null,null,null,null,null,null,null,null,null,null,null,null,null,null,null,null,null,null,null,null,null,null,null,null,null,null,null,null,null,null,null,null,null,null,null,null,null,null,"TEL",null,null,null,{"$f":"IF(#REF!=\"直接入力\",#REF!,#REF!)","v":{"$error":"#REF!"}},null,null,null,null,null,null,null,"FAX",null,null,null,{"$f":"IF(#REF!=\"直接入力\",#REF!,#REF!)","v":{"$error":"#REF!"}}]
[]
[]
[null,null,"■導入時お支払い金額"]
[null,null,"No",null,null,null,"内訳",null,null,null,null,null,null,null,null,null,null,null,null,null,null,null,null,null,"単価（税抜）",null,null,null,null,null,null,null,null,null,"数量",null,null,null,"金額（税抜）"]
[]
[]
[null,null,null,null,null,null,"-",null,null,null,null,null,null,null,null,null,null,null,null,null,null,null,null,null,"-",null,null,null,null,null,null,null,null,null,"-",null,null,null,"-"]
[null,null,{"$f":"IF(Y47=\"-\",0,SUM(C36:F45)+1)","v":{"$error":"#REF!"}},null,null,null,{"$f":"CONCATENATE(#REF!,\"（\",#REF!,\"）\")","v":{"$error":"#REF!"}},null,null,null,null,null,null,null,null,null,null,null,null,null,null,null,null,null,{"$f":"IF(#REF!=1,#REF!,\"-\")","v":{"$error":"#REF!"}},null,null,null,null,null,null,null,null,null,{"$f":"IF(#REF!=1,#REF!,\"-\")","v":{"$error":"#REF!"}},null,null,null,{"$f":"IF(#REF!=1,#REF!,\"-\")","v":{"$error":"#REF!"}}]
[]
[null,null,{"$f":"IF(Y49=\"-\",0,SUM(C38:F48)+1)","v":{"$error":"#REF!"}},null,null,null,{"$f":"#REF!","v":{"$error":"#REF!"}},null,null,null,null,null,null,null,null,null,null,null,null,null,null,null,null,null,{"$f":"IF(#REF!=\"←非結線のため「無」にすること！\",\"-\",IF(#REF!=1,#REF!,\"-\"))","v":{"$error":"#REF!"}},null,null,null,null,null,null,null,null,null,{"$f":"IF(#REF!=\"←非結線のため「無」にすること！\",\"-\",IF(#REF!=1,#REF!,\"-\"))","v":{"$error":"#REF!"}},null,null,null,{"$f":"IF(#REF!=\"←非結線のため「無」にすること！\",\"-\",IF(#REF!=1,#REF!,\"-\"))","v":{"$error":"#REF!"}}]
[]
[null,null,{"$f":"IF(Y51=\"-\",0,SUM(C47,C49)+1)","v":{"$error":"#REF!"}},null,null,null,{"$f":"#REF!","v":{"$error":"#REF!"}},null,null,null,null,null,null,null,null,null,null,null,null,null,null,null,null,null,{"$f":"IF(#REF!=1,#REF!,\"-\")","v":{"$error":"#REF!"}},null,null,null,null,null,null,null,null,null,{"$f":"IF(#REF!=1,#REF!,\"-\")","v":{"$error":"#REF!"}},null,null,null,{"$f":"IF(#REF!=1,#REF!,\"-\")","v":{"$error":"#REF!"}}]
[]
[null,null,{"$f":"IF(Y53=\"-\",0,SUM(C42:F52)+1)","v":{"$error":"#REF!"}},null,null,null,{"$f":"#REF!","v":{"$error":"#REF!"}},null,null,null,null,null,null,null,null,null,null,null,null,null,null,null,null,null,{"$f":"IF(#REF!=1,#REF!,\"-\")","v":{"$error":"#REF!"}},null,null,null,null,null,null,null,null,null,{"$f":"IF(#REF!=1,#REF!,\"-\")","v":{"$error":"#REF!"}},null,null,null,{"$f":"IF(#REF!=1,#REF!,\"-\")","v":{"$error":"#REF!"}}]
[]
[]
[]
[]
[]
[null,null,"合計（税抜）",null,null,null,null,null,null,null,null,null,null,null,null,null,null,null,null,null,null,null,null,null,null,null,null,null,null,null,null,null,null,null,null,null,null,null,{"$f":"IF(#REF!=1,SUM(AM47:AM58),\"-\")","v":{"$error":"#REF!"}}]
[]
[]
[null,null,"消費税",null,null,null,null,null,null,null,null,null,null,null,null,null,null,null,null,null,null,null,null,null,null,null,null,null,null,null,null,null,null,null,null,null,null,null,{"$f":"IF(#REF!=1,AM59*消費税率,\"-\")","v":{"$error":"#REF!"}}]
[]
[]
[null,null,"導入時お支払い額合計（税込）",null,null,null,null,null,null,null,null,null,null,null,null,null,null,null,null,null,null,null,null,null,null,null,null,null,null,null,null,null,null,null,null,null,null,null,{"$f":"IF(#REF!=1,AM59+AM62,\"-\")","v":{"$error":"#REF!"}}]
[]
[]
[]
[]
[null,null,"■月次お支払い金額",null,null,null,null,null,null,null,null,null,null,{"$f":"IF(#REF!=3,#REF!,\"\")","v":{"$error":"#REF!"}}]
[null,null,"内訳",null,null,null,null,null,null,null,null,null,null,null,null,null,null,null,null,"月額/台\n（税抜）",null,null,null,null,null,"台数",null,null,"月額合計\n（税抜）",null,null,null,null,null,null,"消費税",null,null,null,null,null,"月額合計\n（税込）",null,null,null,null,null,null,"契約\n期間",null,null,null,null,"契約期間お支払額\n合計（税抜）",null,null,null,null,null,null,null,"消費税",null,null,null,null,null,"契約期間お支払額\n合計（税込）"]
[]
[]
[]
[null,null,"サーバー利用料",null,null,null,null,null,null,null,null,null,null,null,null,null,null,null,null,{"$f":"#REF!","v":{"$error":"#REF!"}},null,null,null,null,null,{"$f":"#REF!","v":{"$error":"#REF!"}},null,null,{"$f":"#REF!","v":{"$error":"#REF!"}},null,null,null,null,null,null,{"$f":"ROUNDDOWN(AC75*消費税率,0)","v":{"$error":"#REF!"}},null,null,null,null,null,{"$f":"AC75+AJ75","v":{"$error":"#REF!"}},null,null,null,null,null,null,{"$f":"#REF!","v":{"$error":"#REF!"}},null,null,null,null,{"$f":"AC75*AW75","v":{"$error":"#REF!"}},null,null,null,null,null,null,null,{"$f":"AJ75*AW75","v":{"$error":"#REF!"}},null,null,null,null,null,{"$f":"BB75+BJ75","v":{"$error":"#REF!"}}]
[]
[null,null,"データフィードバック"]
[]
[null,null,"車載器費用 合計",null,null,null,null,null,null,null,null,null,null,null,null,null,null,null,null,{"$f":"SUM(T81:Y88)","v":{"$error":"#REF!"}},null,null,null,null,null,"-",null,null,{"$f":"SUM(AC81:AI88)","v":{"$error":"#REF!"}},null,null,null,null,null,null,{"$f":"ROUNDDOWN(AC79*消費税率,0)","v":{"$error":"#REF!"}},null,null,null,null,null,{"$f":"AC79+AJ79","v":{"$error":"#REF!"}},null,null,null,null,null,null,{"$f":"IF(T79=0,\"-\",IF(#REF!=2,#REF!,\"-\"))","v":{"$error":"#REF!"}},null,null,null,null,{"$f":"IF(T79=0,0,AC79*AW79)","v":{"$error":"#REF!"}},null,null,null,null,null,null,null,{"$f":"IF(T79=0,0,AJ79*AW79)","v":{"$error":"#REF!"}},null,null,null,null,null,{"$f":"IF(T79=0,0,BB79+BJ79)","v":{"$error":"#REF!"}}]
[null,null,"<車載器費用内訳>"]
[null,{"$f":"IF(T81=\"-\",0,SUM(B65:B78)+1)","v":{"$error":"#REF!"}},{"$f":"CONCATENATE(#REF!,\"（\",#REF!,\"）\")","v":{"$error":"#REF!"}},null,null,null,null,null,null,null,null,null,null,null,null,null,null,null,null,{"$f":"IF(Z81=0,\"-\",IF(#REF!=2,#REF!,\"-\"))","v":{"$error":"#REF!"}},null,null,null,null,null,{"$f":"IF(#REF!=2,#REF!,\"-\")","v":{"$error":"#REF!"}},null,null,{"$f":"IF(#REF!=2,#REF!,\"-\")","v":{"$error":"#REF!"}}]
[]
[null,{"$f":"IF(T83=\"-\",0,SUM(B67:B82)+1)","v":{"$error":"#REF!"}},{"$f":"#REF!","v":{"$error":"#REF!"}},null,null,null,null,null,null,null,null,null,null,null,null,null,null,null,null,{"$f":"IF(#REF!=\"←非結線のため「無」にすること！\",\"-\",IF(#REF!=2,#REF!,\"-\"))","v":{"$error":"#REF!"}},null,null,null,null,null,{"$f":"IF(#REF!=\"←非結線のため「無」にすること！\",\"-\",IF(#REF!=2,#REF!,\"-\"))","v":{"$error":"#REF!"}},null,null,{"$f":"IF(#REF!=\"←非結線のため「無」にすること！\",\"-\",IF(#REF!=2,#REF!,\"-\"))","v":{"$error":"#REF!"}}]
[]
[null,{"$f":"IF(T85=\"-\",0,SUM(B69:B84)+1)","v":{"$error":"#REF!"}},{"$f":"#REF!","v":{"$error":"#REF!"}},null,null,null,null,null,null,null,null,null,null,null,null,null,null,null,null,{"$f":"IF(#REF!=2,#REF!,\"-\")","v":{"$error":"#REF!"}},null,null,null,null,null,{"$f":"IF(#REF!=2,#REF!,\"-\")","v":{"$error":"#REF!"}},null,null,{"$f":"IF(#REF!=2,#REF!,\"-\")","v":{"$error":"#REF!"}}]
[]
[null,{"$f":"IF(T87=\"-\",0,SUM(B71:B86)+1)","v":{"$error":"#REF!"}},{"$f":"#REF!","v":{"$error":"#REF!"}},null,null,null,null,null,null,null,null,null,null,null,null,null,null,null,null,{"$f":"IF(#REF!=2,#REF!,\"-\")","v":{"$error":"#REF!"}},null,null,null,null,null,{"$f":"IF(#REF!=2,#REF!,\"-\")","v":{"$error":"#REF!"}},null,null,{"$f":"IF(#REF!=2,#REF!,\"-\")","v":{"$error":"#REF!"}}]
[]
[null,null,"合計",null,null,null,null,null,null,null,null,null,null,null,null,null,null,null,null,"-",null,null,null,null,null,"-",null,null,{"$f":"AC75+AC79","v":{"$error":"#REF!"}},null,null,null,null,null,null,{"$f":"AJ75+AJ79","v":{"$error":"#REF!"}},null,null,null,null,null,{"$f":"AP75+AP79","v":{"$error":"#REF!"}},null,null,null,null,null,null,"-",null,null,null,null,{"$f":"BB75+BB79","v":{"$error":"#REF!"}},null,null,null,null,null,null,null,{"$f":"BJ75+BJ79","v":{"$error":"#REF!"}},null,null,null,null,null,{"$f":"BP75+BP79","v":{"$error":"#REF!"}}]
[]
[]
[]
[null,null,"※見積有効期限は、本書日付後３０日限りです。"]
[]
[]
[null,null,"特記事項"]
[null,null,"・車載器のメーカー保証期間は導入から１年間になります。\n・保証期間経過後の修理対応は別途有償です。\n・車載器移設の際は取り外し費用(10,000円/台）と取付費用（20,000円/台）が別途発生します。\n・車両によっては取付時に別途部材が必要になる場合があります（有償）。\n・正式発注後、納品まで最短で2～3週間かかります。\n・取付工事は１台当たり２時間程度必要です。"]
[]
[]
[]
[]
[]
[]
[]
[]
[]
[]
[]
[]
[]
[]
[]
[]
[]
[]
[null,null,"貴社確認欄　＊内容をご確認の上、弊社担当者宛にFAX下さい。"]
[null,null,"\n　 上記見積もり内容にて発注いたします。　　　　　　　　　　　　　　　　　　　　　　　　　　平成　　　　年　　　　月　　　　日\n\n　　（貴社名・ご担当者様）\n\n\n\n　　　　　　　　　　　　　　　　　　　　　　　　　　　　　　　　　　　　　　　　　　　　　　　　　　　　　　　　　　印"]

{"sheet":"決裁区分","index":7,"n_rows":60,"n_cols":14,"rows_kept":60,"cut":false,"hidden":true,"merged":[[4,1,5,1],[38,0,38,1],[39,0,39,1],[41,0,41,1],[54,1,54,4],[48,0,48,1],[42,0,42,1],[43,0,43,1],[41,2,41,3],[42,2,42,3],[46,0,46,1],[47,0,47,1],[55,1,55,4],[56,1,56,4],[57,1,57,4],[58,1,58,4],[59,1,59,4]]}
[]
[]
["■決裁基準表"]
["極度額",null,null,null,null,null,null,null,null,null,null,0,"課長",0]
["極度設定額",{"$f":"IF(A6<C6,\"<\",IF(A6>C6,\">\",\"\"))","v":{"$error":"#REF!"}},"総与信残高",null,null,null,null,null,"決裁区分",null,null,1,"部支店長",1]
[{"$f":"IF(#REF!=\"-\",0,#REF!)","v":{"$error":"#REF!"}},null,{"$f":"#REF!","v":{"$error":"#REF!"}},null,null,null,null,null,{"$f":"IF(A6>C6,\"部支店長\",IF(A6<C6,\"与信残高表に従う\"))","v":{"$error":"#REF!"}},{"$f":"IF(I6=\"与信残高表に従う\",J20,1)","v":{"$error":"#REF!"}},null,2,"営業本部長",2]
[null,null,null,null,null,null,null,null,null,null,null,3,"審査部長",3]
["与信残高",null,null,null,null,null,null,null,null,null,null,4,"審査管掌役員",4]
["格付","課長","部支店長","審査部長","審査管掌役員","社長","経営会議","取締役会",null,null,null,5,"社長",5]
[1,20,300,800,1200,2000,3000,3001,null,null,null,6,"経営会議",6]
[2,20,300,800,1200,2000,3000,3001,null,null,null,7,"取締役会",7]
[3,20,300,800,1200,2000,3000,3001]
[4,15,100,400,600,900,3000,3001]
[5,15,100,400,600,900,3000,3001]
[6,10,60,200,300,600,3000,3001]
[71,10,60,200,300,600,3000,3001]
[72,0,30,100,200,400,3000,3001]
[]
[{"$f":"#REF!","v":{"$error":"#REF!"}},{"$f":"VLOOKUP($A$19,$A$10:$H$17,2,FALSE)","v":{"$error":"#REF!"}},{"$f":"VLOOKUP($A$19,$A$10:$H$17,3,FALSE)","v":{"$error":"#REF!"}},{"$f":"VLOOKUP($A$19,$A$10:$H$17,4,FALSE)","v":{"$error":"#REF!"}},{"$f":"VLOOKUP($A$19,$A$10:$H$17,5,FALSE)","v":{"$error":"#REF!"}},{"$f":"VLOOKUP($A$19,$A$10:$H$17,6,FALSE)","v":{"$error":"#REF!"}},{"$f":"VLOOKUP($A$19,$A$10:$H$17,7,FALSE)","v":{"$error":"#REF!"}},{"$f":"VLOOKUP($A$19,$A$10:$H$17,8,FALSE)","v":{"$error":"#REF!"}},"決裁区分"]
[{"$f":"SUM(B20:H20)","v":{"$error":"#REF!"}},{"$f":"IF(B19>#REF!,0,\"\")","v":{"$error":"#REF!"}},{"$f":"IF(AND(B19<=#REF!,#REF!<決裁区分!C19),1,\"\")","v":{"$error":"#REF!"}},{"$f":"IF(AND(C19<=#REF!,D19>#REF!),3,\"\")","v":{"$error":"#REF!"}},{"$f":"IF(AND(D19<=#REF!,#REF!<決裁区分!E19),4,\"\")","v":{"$error":"#REF!"}},{"$f":"IF(AND(E19<=#REF!,#REF!<決裁区分!F19),5,\"\")","v":{"$error":"#REF!"}},{"$f":"IF(AND(F19<=#REF!,#REF!<決裁区分!G19),6,\"\")","v":{"$error":"#REF!"}},{"$f":"IF(AND(G19<=#REF!,#REF!<決裁区分!H19),7,\"\")","v":{"$error":"#REF!"}},{"$f":"IF(A19=73,\"審査部長\",VLOOKUP(A20,L4:N11,2,FALSE))","v":{"$error":"#REF!"}},{"$f":"VLOOKUP(I20,M4:N11,2,FALSE)","v":{"$error":"#REF!"}}]
[]
["1件限度"]
["格付","課長","部支店長","審査部長","審査管掌役員","社長","経営会議","取締役会"]
[1,20,150,400,600,1000,3000,3001]
[2,20,150,400,600,1000,3000,3001]
[3,20,150,400,600,1000,3000,3001]
[4,15,50,200,300,450,3000,3001]
[5,15,50,200,300,450,3000,3001]
[6,10,30,100,150,300,3000,3001]
[71,10,30,100,150,300,3000,3001]
[72,0,15,50,100,200,3000,3001]
[]
[{"$f":"#REF!","v":{"$error":"#REF!"}},{"$f":"VLOOKUP($A$33,$A$24:$H$31,2,FALSE)","v":{"$error":"#REF!"}},{"$f":"VLOOKUP($A$33,$A$24:$H$31,3,FALSE)","v":{"$error":"#REF!"}},{"$f":"VLOOKUP($A$33,$A$24:$H$31,4,FALSE)","v":{"$error":"#REF!"}},{"$f":"VLOOKUP($A$33,$A$24:$H$31,5,FALSE)","v":{"$error":"#REF!"}},{"$f":"VLOOKUP($A$33,$A$24:$H$31,6,FALSE)","v":{"$error":"#REF!"}},{"$f":"VLOOKUP($A$33,$A$24:$H$31,7,FALSE)","v":{"$error":"#REF!"}},{"$f":"VLOOKUP($A$33,$A$24:$H$31,8,FALSE)","v":{"$error":"#REF!"}},"決裁区分"]
[{"$f":"SUM(B34:H34)","v":{"$error":"#REF!"}},{"$f":"IF(B33>#REF!,0,\"\")","v":{"$error":"#REF!"}},{"$f":"IF(AND(B33<=#REF!,#REF!<決裁区分!C33),1,\"\")","v":{"$error":"#REF!"}},{"$f":"IF(AND(C33<=#REF!,#REF!<決裁区分!D33),3,\"\")","v":{"$error":"#REF!"}},{"$f":"IF(AND(D33<=#REF!,#REF!<決裁区分!E33),4,\"\")","v":{"$error":"#REF!"}},{"$f":"IF(AND(E33<=#REF!,#REF!<決裁区分!F33),5,\"\")","v":{"$error":"#REF!"}},{"$f":"IF(AND(F33<=#REF!,#REF!<決裁区分!G33),6,\"\")","v":{"$error":"#REF!"}},{"$f":"IF(AND(G33<=#REF!,#REF!<決裁区分!H33),7,\"\")","v":{"$error":"#REF!"}},{"$f":"IF(A33=73,\"審査部長\",VLOOKUP(A34,L4:N11,2,FALSE))","v":{"$error":"#REF!"}},{"$f":"VLOOKUP(I34,M4:N11,2,FALSE)","v":{"$error":"#REF!"}},{"$f":"MAX(J6,J34)","v":{"$error":"#REF!"}}]
[]
["■営業本部長の決裁となるケース"]
[]
["①支払手数料"]
["支払手数料",null,{"$f":"#REF!","v":{"$error":"#REF!"}}]
["手数料支払契約書の有無",null,{"$f":"#REF!","v":{"$error":"#REF!"}},{"$f":"IF(C39=\"無\",2,IF(AND(C39=\"有\",C40=\"有\"),2,1))","v":{"$error":"#REF!"}}]
["②採算"]
["車載器他物代採算",null,{"$f":"IF(#REF!<0,\"マイナス採算\",IF(#REF!>0,\"プラス採算\"))","v":{"$error":"#REF!"}},null,{"$f":"IF(C42=\"マイナス採算\",1,2)","v":{"$error":"#REF!"}},"決裁区分"]
["ASP採算",null,{"$f":"IF(#REF!>0.05,\"5%以上\",\"5%未満\")","v":{"$error":"#REF!"}},null,{"$f":"IF(C43=\"5%未満\",1,2)","v":{"$error":"#REF!"}},{"$f":"IF(D40=1,\"営業本部長\",IF(E42=1,\"営業本部長\",IF(E43=1,\"営業本部長\",\"\")))","v":{"$error":"#REF!"}},{"$f":"IF(F43=\"\",K34,2)","v":{"$error":"#REF!"}}]
[]
[]
["■審査部長の決裁となるケース"]
["①信用格付「7-3」",null,{"$f":"#REF!","v":{"$error":"#REF!"}},{"$f":"IF(C47=73,1,2)","v":{"$error":"#REF!"}}]
["②6格以下上場企業",null,"廃止",2,null,"決裁区分"]
["③初回回収日90日超",null,{"$f":"IF(#REF!>90,\"該当\",IF(#REF!>90,\"該当\",\"-\"))","v":{"$error":"#REF!"}},{"$f":"IF(C49=\"該当\",1,2)","v":{"$error":"#REF!"}},null,{"$f":"IF(D47=1,\"審査部長\",IF(D48=1,\"審査部長\",IF(D49=1,\"審査部長\",\"\")))","v":{"$error":"#REF!"}},{"$f":"IF(F49=\"\",K34,3)","v":{"$error":"#REF!"}},{"$f":"MAX(K34,G49)","v":{"$error":"#REF!"}},{"$f":"MAX(G43,H49)","v":{"$error":"#REF!"}}]
[]
["■契約書の押印代行",null,null,null,null,null,null,null,null,"最終決裁者"]
[{"$f":"#REF!","v":{"$error":"#REF!"}},{"$f":"IF(A52=\"営業送付(営業部長押印)\",0,1)","v":{"$error":"#REF!"}},null,null,null,null,null,null,{"$f":"MAX(B52,I49)","v":{"$error":"#REF!"}},{"$f":"VLOOKUP(I52,L4:M11,2,FALSE)","v":{"$error":"#REF!"}}]
[]
[]
[{"$f":"IF(D40=2,0,1)","v":{"$error":"#REF!"}},"・営業本部長未承認の支払手数料を伴う取引"]
[{"$f":"IF(E42=2,0,A55+1)","v":{"$error":"#REF!"}},"・車載器他物代の成約粗利益がマイナスの取引"]
[{"$f":"IF(E43=2,0,SUM(A55:A56)+1)","v":{"$error":"#REF!"}},"・ASP契約（MI）の粗利益率が5%未満"]
[{"$f":"IF(D47=2,0,SUM(A55:A57)+1)","v":{"$error":"#REF!"}},"・信用格付「7-3」先に対する取引"]
[{"$f":"IF(D48=2,0,SUM(A55:A58)+1)","v":0},"・信用格付「6」以下の上場企業に対する取引"]
[{"$f":"IF(D49=2,0,SUM(A55:A59)+1)","v":{"$error":"#REF!"}},"・初回回収日が検収日から90日を超える取引"]

{"sheet":"見積書(総額表示無-作業用)","index":8,"n_rows":122,"n_cols":67,"rows_kept":122,"cut":false,"hidden":true,"merged":[[79,2,80,21],[81,2,82,21],[79,22,80,29],[79,30,80,33],[79,34,80,42],[79,43,80,48],[79,49,80,57],[79,58,80,63],[81,22,82,29],[81,30,82,33],[81,34,82,42],[81,43,82,48],[81,49,82,57],[81,58,82,63],[78,2,78,21],[78,22,78,29],[78,30,78,33],[78,34,78,42],[78,43,78,48],[78,49,78,57],[78,58,78,63],[0,45,2,75],[3,0,9,75],[12,1,15,20],[12,21,15,28],[16,6,16,27],[17,5,19,28],[32,50,33,75],[34,50,35,75],[36,50,37,53],[36,54,37,68],[38,50,39,53],[38,54,39,61],[38,62,39,65],[38,66,39,74],[20,5,22,28],[23,5,25,28],[25,51,27,66],[28,50,29,51],[28,52,29,58],[30,50,31,75],[46,50,49,72],[48,2,49,5],[48,6,49,23],[48,24,49,33],[48,34,49,37],[48,38,49,48],[42,2,44,5],[42,6,44,23],[42,24,44,33],[42,34,44,37],[42,38,44,48],[46,2,47,5],[46,6,47,23],[46,24,47,33],[46,34,47,37],[46,38,47,48],[45,6,45,23],[45,24,45,33],[45,34,45,37],[45,38,45,48],[50,2,51,5],[50,6,51,23],[50,24,51,33],[50,34,51,37],[50,38,51,48],[52,2,53,5],[52,6,53,23],[52,24,53,33],[52,34,53,37],[52,38,53,48],[58,2,60,37],[58,38,60,48],[61,2,63,37],[61,38,63,48],[64,2,66,37],[64,38,66,48],[54,2,55,5],[54,6,55,23],[54,24,55,33],[54,34,55,37],[54,38,55,48],[56,2,57,5],[56,6,57,23],[56,24,57,33],[56,34,57,37],[56,38,57,48],[70,58,73,63],[74,2,75,21],[74,22,77,29],[74,30,77,33],[74,34,77,42],[74,43,77,48],[74,49,77,57],[74,58,77,63],[76,2,77,21],[70,2,73,21],[70,22,73,29],[70,30,73,33],[70,34,73,42],[70,43,73,48],[70,49,73,57],[87,22,88,29],[87,30,88,33],[87,34,88,42],[87,43,88,48],[87,49,88,57],[83,58,84,63],[85,2,86,21],[85,22,86,29],[85,30,86,33],[85,34,86,42],[85,43,86,48],[85,49,86,57],[85,58,86,63],[83,2,84,21],[83,22,84,29],[83,30,84,33],[83,34,84,42],[83,43,84,48],[83,49,84,57],[101,2,118,75],[120,2,120,33],[121,2,129,75],[93,2,95,21],[93,22,95,29],[93,30,95,33],[93,34,95,42],[93,43,95,48],[93,49,95,57],[83,1,84,1],[85,1,86,1],[87,1,88,1],[89,1,90,1],[91,1,92,1],[93,58,95,63],[97,2,98,21],[100,2,100,14],[91,2,92,21],[91,22,92,29],[91,30,92,33],[91,34,92,42],[91,43,92,48],[91,49,92,57],[91,58,92,63],[87,58,88,63],[89,2,90,21],[89,22,90,29],[89,30,90,33],[89,34,90,42],[89,43,90,48],[89,49,90,57],[89,58,90,63],[87,2,88,21]]}
[null,null,null,null,null,null,null,null,null,null,null,null,null,null,null,null,null,null,null,null,null,null,null,null,null,null,null,null,null,null,null,null,null,null,null,null,null,null,null,null,null,null,null,null,null,{"$f":"TODAY()","v":"2021-03-29"}]
[]
[]
["ＭＡＬテレマティクスサービス利用御見積書"]
[]
[]
[]
[]
[]
[]
[]
[]
[null,{"$f":"#REF!","v":{"$error":"#REF!"}},null,null,null,null,null,null,null,null,null,null,null,null,null,null,null,null,null,null,null,"御中"]
[]
[]
[]
[]
[null,null,null,null,null,"毎度お引立てにあずかり厚く御礼申し上げます。"]
[]
[]
[null,null,null,null,null,"下記の通り御見積いたしますのでよろしく"]
[]
[]
[null,null,null,null,null,"ご検討賜わりますようお願い申し上げます。"]
[]
[null,null,null,null,null,null,null,null,null,null,null,null,null,null,null,null,null,null,null,null,null,null,null,null,null,null,null,null,null,null,null,null,null,null,null,null,null,null,null,null,null,null,null,null,null,null,null,null,null,null,null,"三菱オートリース株式会社"]
[]
[]
[null,null,null,null,null,null,null,null,null,null,null,null,null,null,null,null,null,null,null,null,null,null,null,null,null,null,null,null,null,null,null,null,null,null,null,null,null,null,null,null,null,null,null,null,null,null,null,null,null,null,"〒",null,{"$f":"#REF!","v":{"$error":"#REF!"}}]
[]
[null,null,null,null,null,null,null,null,null,null,null,null,null,null,null,null,null,null,null,null,null,null,null,null,null,null,null,null,null,null,null,null,null,null,null,null,null,null,null,null,null,null,null,null,null,null,null,null,null,null,{"$f":"#REF!","v":{"$error":"#REF!"}}]
[]
[null,null,null,null,null,null,null,null,null,null,null,null,null,null,null,null,null,null,null,null,null,null,null,null,null,null,null,null,null,null,null,null,null,null,null,null,null,null,null,null,null,null,null,null,null,null,null,null,null,null,"名古屋桜通ビル 2 階"]
[]
[null,null,null,null,null,null,null,null,null,null,null,null,null,null,null,null,null,null,null,null,null,null,null,null,null,null,null,null,null,null,null,null,null,null,null,null,null,null,null,null,null,null,null,null,null,null,null,null,null,null,{"$f":"#REF!","v":{"$error":"#REF!"}}]
[]
[null,null,null,null,null,null,null,null,null,null,null,null,null,null,null,null,null,null,null,null,null,null,null,null,null,null,null,null,null,null,null,null,null,null,null,null,null,null,null,null,null,null,null,null,null,null,null,null,null,null,"担当者",null,null,null,{"$f":"#REF!","v":{"$error":"#REF!"}}]
[]
[null,null,null,null,null,null,null,null,null,null,null,null,null,null,null,null,null,null,null,null,null,null,null,null,null,null,null,null,null,null,null,null,null,null,null,null,null,null,null,null,null,null,null,null,null,null,null,null,null,null,"TEL",null,null,null,{"$f":"IF(#REF!=\"直接入力\",#REF!,#REF!)","v":{"$error":"#REF!"}},null,null,null,null,null,null,null,"FAX",null,null,null,{"$f":"IF(#REF!=\"直接入力\",#REF!,#REF!)","v":{"$error":"#REF!"}}]
[]
[]
[null,null,"■導入時お支払い金額"]
[null,null,"No",null,null,null,"内訳",null,null,null,null,null,null,null,null,null,null,null,null,null,null,null,null,null,"単価（税抜）",null,null,null,null,null,null,null,null,null,"数量",null,null,null,"金額（税抜）"]
[]
[]
[null,null,null,null,null,null,"-",null,null,null,null,null,null,null,null,null,null,null,null,null,null,null,null,null,"-",null,null,null,null,null,null,null,null,null,"-",null,null,null,"-"]
[null,null,{"$f":"IF(Y47=\"-\",0,SUM(C36:F45)+1)","v":{"$error":"#REF!"}},null,null,null,{"$f":"CONCATENATE(#REF!,\"（\",#REF!,\"）\")","v":{"$error":"#REF!"}},null,null,null,null,null,null,null,null,null,null,null,null,null,null,null,null,null,{"$f":"IF(#REF!=1,#REF!,\"-\")","v":{"$error":"#REF!"}},null,null,null,null,null,null,null,null,null,{"$f":"IF(#REF!=1,#REF!,\"-\")","v":{"$error":"#REF!"}},null,null,null,{"$f":"IF(#REF!=1,#REF!,\"-\")","v":{"$error":"#REF!"}}]
[]
[null,null,{"$f":"IF(Y49=\"-\",0,SUM(C38:F48)+1)","v":{"$error":"#REF!"}},null,null,null,{"$f":"#REF!","v":{"$error":"#REF!"}},null,null,null,null,null,null,null,null,null,null,null,null,null,null,null,null,null,{"$f":"IF(#REF!=\"←非結線のため「無」にすること！\",\"-\",IF(#REF!=1,#REF!,\"-\"))","v":{"$error":"#REF!"}},null,null,null,null,null,null,null,null,null,{"$f":"IF(#REF!=\"←非結線のため「無」にすること！\",\"-\",IF(#REF!=1,#REF!,\"-\"))","v":{"$error":"#REF!"}},null,null,null,{"$f":"IF(#REF!=\"←非結線のため「無」にすること！\",\"-\",IF(#REF!=1,#REF!,\"-\"))","v":{"$error":"#REF!"}}]
[]
[null,null,{"$f":"IF(Y51=\"-\",0,SUM(C40:F50)+1)","v":{"$error":"#REF!"}},null,null,null,{"$f":"#REF!","v":{"$error":"#REF!"}},null,null,null,null,null,null,null,null,null,null,null,null,null,null,null,null,null,{"$f":"IF(#REF!=1,#REF!,\"-\")","v":{"$error":"#REF!"}},null,null,null,null,null,null,null,null,null,{"$f":"IF(#REF!=1,#REF!,\"-\")","v":{"$error":"#REF!"}},null,null,null,{"$f":"IF(#REF!=1,#REF!,\"-\")","v":{"$error":"#REF!"}}]
[]
[null,null,{"$f":"IF(Y53=\"-\",0,SUM(C42:F52)+1)","v":{"$error":"#REF!"}},null,null,null,{"$f":"#REF!","v":{"$error":"#REF!"}},null,null,null,null,null,null,null,null,null,null,null,null,null,null,null,null,null,{"$f":"IF(#REF!=1,#REF!,\"-\")","v":{"$error":"#REF!"}},null,null,null,null,null,null,null,null,null,{"$f":"IF(#REF!=1,#REF!,\"-\")","v":{"$error":"#REF!"}},null,null,null,{"$f":"IF(#REF!=1,#REF!,\"-\")","v":{"$error":"#REF!"}}]
[]
[]
[]
[]
[]
[null,null,"合計（税抜）",null,null,null,null,null,null,null,null,null,null,null,null,null,null,null,null,null,null,null,null,null,null,null,null,null,null,null,null,null,null,null,null,null,null,null,{"$f":"IF(#REF!=1,SUM(AM47:AM58),\"-\")","v":{"$error":"#REF!"}}]
[]
[]
[null,null,"消費税",null,null,null,null,null,null,null,null,null,null,null,null,null,null,null,null,null,null,null,null,null,null,null,null,null,null,null,null,null,null,null,null,null,null,null,{"$f":"IF(#REF!=1,AM59*消費税率,\"-\")","v":{"$error":"#REF!"}}]
[]
[]
[null,null,"導入時お支払い額合計（税込）",null,null,null,null,null,null,null,null,null,null,null,null,null,null,null,null,null,null,null,null,null,null,null,null,null,null,null,null,null,null,null,null,null,null,null,{"$f":"IF(#REF!=1,AM59+AM62,\"-\")","v":{"$error":"#REF!"}}]
[]
[]
[]
[]
[null,null,"■月次お支払い金額",null,null,null,null,null,null,null,null,null,null,{"$f":"IF(#REF!=3,#REF!,\"\")","v":{"$error":"#REF!"}}]
[null,null,"内訳",null,null,null,null,null,null,null,null,null,null,null,null,null,null,null,null,null,null,null,"月額/台\n（税抜）",null,null,null,null,null,null,null,"台数",null,null,null,"月額合計\n（税抜）",null,null,null,null,null,null,null,null,"消費税",null,null,null,null,null,"月額合計\n（税込）",null,null,null,null,null,null,null,null,"契約\n期間"]
[]
[]
[]
[null,null,"サーバー利用料",null,null,null,null,null,null,null,null,null,null,null,null,null,null,null,null,null,null,null,{"$f":"#REF!","v":{"$error":"#REF!"}},null,null,null,null,null,null,null,{"$f":"#REF!","v":{"$error":"#REF!"}},null,null,null,{"$f":"#REF!","v":{"$error":"#REF!"}},null,null,null,null,null,null,null,null,{"$f":"ROUNDDOWN(AI75*消費税率,0)","v":{"$error":"#REF!"}},null,null,null,null,null,{"$f":"AI75+AR75","v":{"$error":"#REF!"}},null,null,null,null,null,null,null,null,{"$f":"#REF!","v":{"$error":"#REF!"}}]
[]
[null,null,"データフィードバック"]
[]
[null,null,"-",null,null,null,null,null,null,null,null,null,null,null,null,null,null,null,null,null,null,null,"-",null,null,null,null,null,null,null,"-",null,null,null,"-",null,null,null,null,null,null,null,null,"-",null,null,null,null,null,"-",null,null,null,null,null,null,null,null,"-"]
[null,null,"車載器費用　合計",null,null,null,null,null,null,null,null,null,null,null,null,null,null,null,null,null,null,null,{"$f":"SUM(W84:AD91)","v":{"$error":"#REF!"}},null,null,null,null,null,null,null,null,null,null,null,{"$f":"SUM(AI84:AQ91)","v":{"$error":"#REF!"}},null,null,null,null,null,null,null,null,{"$f":"ROUNDDOWN(AI80*消費税率,0)","v":{"$error":"#REF!"}},null,null,null,null,null,{"$f":"AI80+AR80","v":{"$error":"#REF!"}},null,null,null,null,null,null,null,null,{"$f":"IF(W80=\"-\",\"\",IF(#REF!=2,#REF!,\"-\"))","v":{"$error":"#REF!"}}]
[]
[null,null,"<車載器費用内訳>"]
[]
[null,{"$f":"IF(W84=\"-\",0,SUM(B69:B78)+1)","v":{"$error":"#REF!"}},{"$f":"CONCATENATE(#REF!,\"（\",#REF!,\"）\")","v":{"$error":"#REF!"}},null,null,null,null,null,null,null,null,null,null,null,null,null,null,null,null,null,null,null,{"$f":"IF(AE84=0,\"-\",IF(#REF!=2,#REF!,\"-\"))","v":{"$error":"#REF!"}},null,null,null,null,null,null,null,{"$f":"IF(#REF!=2,#REF!,\"-\")","v":{"$error":"#REF!"}},null,null,null,{"$f":"IF(#REF!=2,#REF!,\"-\")","v":{"$error":"#REF!"}}]
[]
[null,{"$f":"IF(W86=\"-\",0,SUM(B71:B85)+1)","v":{"$error":"#REF!"}},{"$f":"#REF!","v":{"$error":"#REF!"}},null,null,null,null,null,null,null,null,null,null,null,null,null,null,null,null,null,null,null,{"$f":"IF(#REF!=\"←非結線のため「無」にすること！\",\"-\",IF(#REF!=2,#REF!,\"-\"))","v":{"$error":"#REF!"}},null,null,null,null,null,null,null,{"$f":"IF(#REF!=\"←非結線のため「無」にすること！\",\"-\",IF(#REF!=2,#REF!,\"-\"))","v":{"$error":"#REF!"}},null,null,null,{"$f":"IF(#REF!=\"←非結線のため「無」にすること！\",\"-\",IF(#REF!=2,#REF!,\"-\"))","v":{"$error":"#REF!"}}]
[]
[null,{"$f":"IF(W88=\"-\",0,SUM(B73:B87)+1)","v":{"$error":"#REF!"}},{"$f":"#REF!","v":{"$error":"#REF!"}},null,null,null,null,null,null,null,null,null,null,null,null,null,null,null,null,null,null,null,{"$f":"IF(#REF!=2,#REF!,\"-\")","v":{"$error":"#REF!"}},null,null,null,null,null,null,null,{"$f":"IF(#REF!=2,#REF!,\"-\")","v":{"$error":"#REF!"}},null,null,null,{"$f":"IF(#REF!=2,#REF!,\"-\")","v":{"$error":"#REF!"}}]
[]
[null,{"$f":"IF(W90=\"-\",0,SUM(B75:B89)+1)","v":{"$error":"#REF!"}},{"$f":"#REF!","v":{"$error":"#REF!"}},null,null,null,null,null,null,null,null,null,null,null,null,null,null,null,null,null,null,null,{"$f":"IF(#REF!=2,#REF!,\"-\")","v":{"$error":"#REF!"}},null,null,null,null,null,null,null,{"$f":"IF(#REF!=2,#REF!,\"-\")","v":{"$error":"#REF!"}},null,null,null,{"$f":"IF(#REF!=2,#REF!,\"-\")","v":{"$error":"#REF!"}}]
[]
[]
[]
[null,null,"合計",null,null,null,null,null,null,null,null,null,null,null,null,null,null,null,null,null,null,null,null,null,null,null,null,null,null,null,null,null,null,null,{"$f":"AI75+AI80","v":{"$error":"#REF!"}},null,null,null,null,null,null,null,null,{"$f":"AR75+AR80","v":{"$error":"#REF!"}},null,null,null,null,null,{"$f":"AX75+AX80","v":{"$error":"#REF!"}},null,null,null,null,null,null,null,null,"-"]
[]
[]
[]
[null,null,"※見積有効期限は、本書日付後３０日限りです。"]
[]
[]
[null,null,"特記事項"]
[null,null,"・車載器のメーカー保証期間は導入から１年間になります。\n・保証期間経過後の修理対応は別途有償です。\n・車載器移設の際は取り外し費用(10,000円/台）と取付費用（20,000円/台）が別途発生します。\n・車両によっては取付時に別途部材が必要になる場合があります（有償）。\n・正式発注後、納品まで最短で2～3週間かかります。\n・取付工事は１台当たり２時間程度必要です。"]
[]
[]
[]
[]
[]
[]
[]
[]
[]
[]
[]
[]
[]
[]
[]
[]
[]
[]
[null,null,"貴社確認欄　＊内容をご確認の上、弊社担当者宛にFAX下さい。"]
[null,null,"\n　 上記見積もり内容にて発注いたします。　　　　　　　　　　　　　　　　　　　　　　　　　　平成　　　　年　　　　月　　　　日\n\n　　（貴社名・ご担当者様）\n\n\n\n　　　　　　　　　　　　　　　　　　　　　　　　　　　　　　　　　　　　　　　　　　　　　　　　　　　　　　　　　　印"]

{"sheet":"デモ機手配依頼書","index":9,"n_rows":17,"n_cols":24,"rows_kept":17,"cut":false,"hidden":false,"merged":[[3,20,3,23],[0,21,0,23],[15,14,15,18],[16,14,16,18],[14,14,14,18],[1,22,1,23],[1,15,1,20],[4,16,4,18],[16,21,16,23],[15,21,15,23],[3,11,3,14],[6,11,6,12],[7,24,7,25],[9,24,9,25],[13,21,14,23],[13,0,14,0],[13,1,14,1],[13,2,13,3],[13,4,14,4],[13,13,13,18],[14,6,14,10],[7,11,7,12],[8,11,8,12],[9,0,11,1],[4,0,4,1],[5,0,6,1],[7,0,8,1],[16,6,16,10],[13,19,13,20],[13,5,13,12],[15,6,15,10],[6,13,6,14],[7,13,7,14],[8,13,8,14],[4,11,5,12],[4,13,5,14]]}
["デモ機手配依頼書",null,null,null,null,null,null,null,null,null,null,null,null,null,null,null,null,null,null,null,"ご記入日：","年　　月　　日"]
[]
[null,null,null,"お客様ご記入欄"]
[null,null,null,null,"お客様情報",null,null,null,null,null,null,"セイコーソリューションズ担当",null,null,null,null,null,null,null,null,"希望貸出期間"]
["貴社名",null,null,null,null,null,null,null,null,null,null,"部署",null,"Drive Cloud +サポート",null,null,null,null,null,null,2021,"年",null,"月"]
["住所",null,"〒",null,null,null,null,null,null,null,null,null,null,null,null,null,"※毎月20日までに担当者まで、手配依頼書をメールでご送付ください。"]
[null,null,null,null,null,null,null,null,null,null,null,"TEL",null,"０５７０－６６６－３８８",null,null,"※翌月10日までにデモ機が届きます。お急ぎの場合は、別途ご連絡ください。"]
["ご担当者様",null,"部署",null,null,null,null,null,null,null,null,"メール",null,"dcp-sales@seiko-sol.co.jp",null,null,"※設定内容、ID、パスワードが記載された回答書がデモ機に同梱されます。"]
[null,null,"氏名",null,null,null,null,null,null,null,null,null,null,null,null,null,"※貸出期間は月末までです。期間を延長したい場合は、別途ご相談ください。"]
["ご連絡先",null,"TEL",null,null,null,null,null,null,null,null,null,null,null,null,null,"※システムは約3か月間ご利用いただけます。ハードご返却後も参照は可能です。"]
[null,null,"FAX",null,null,null,null,null,null,null,null,null,null,null,null,null,"※スケジュールの都合上、ご希望期間に対応できない場合や、"]
[null,null,"メール",null,null,null,null,null,null,null,null,null,null,null,null,null,"　　貸出期間の延長はできない場合があります。"]
[]
["ＮＯ","車両タイプ","ADAS設定(警告音)",null,"車内音声録音","送付先",null,null,null,null,null,null,null,"車両所在地住所",null,null,null,null,null,"オプション\n(どちらか１つ)",null,"備考"]
[null,null,"80km以上での車線変更時","前方車両への近接時",null,"〒","住所",null,null,null,null,"宛名","TEL","〒","住所",null,null,null,null,"車内カメラ","バックカメラ"]
["例","乗用車","出す","出す","録音する",null,"上記住所と同じ場合は不要です",null,null,null,null,null,null,null,"上記住所と同じ場合は不要です",null,null,null,null,"〇"]
[1]

{"sheet":"デモ機回答書","index":10,"n_rows":40,"n_cols":14,"rows_kept":40,"cut":false,"hidden":false,"merged":[[32,4,32,10],[34,2,34,5],[36,0,36,13],[39,6,39,7],[38,10,38,11],[39,10,39,11],[38,1,38,2],[39,1,39,2],[38,3,38,5],[39,3,39,5],[0,11,0,13],[3,7,3,13],[4,7,4,9],[4,11,4,13],[38,6,38,7],[14,0,14,13],[20,2,20,3],[20,4,20,10],[21,2,21,3],[21,4,21,10],[22,2,22,3],[22,4,22,10],[26,0,26,13],[31,2,31,3],[31,4,31,10],[32,2,32,3],[2,0,2,4],[12,9,12,13],[5,9,5,13],[5,7,5,8],[6,7,12,8],[6,9,6,13],[7,9,7,13],[8,9,8,13],[9,9,9,13]]}
["デモ機手配回答書",null,null,null,null,null,null,null,null,null,"発送日：","年　　月　　日"]
[]
["株式会社　○○○○　御中"]
[null,null,null,null,null,null,null,"貸出期間"]
["この度はデモ機のご依頼をいただき、ありがとうございます。",null,null,null,null,null,null,"年　　月　　日",null,null,"~","　　　　年　　月　　日"]
["下記アクセス情報をもとに、サービスをご利用ください。",null,null,null,null,null,null,"ご返却発送日",null,"貸出期間最終日の翌日までにご発送ください。"]
[null,null,null,null,null,null,null,"ご返却・お問い合わせ先",null,"〒261-8507"]
[null,null,null,null,null,null,null,null,null,"千葉県千葉市美浜区中瀬１－８"]
["※送料は発送元負担となります。",null,null,null,null,null,null,null,null,"セイコーソリューションズ株式会社"]
["※ご返却が遅れる場合は必ずご連絡をお願いいたします。",null,null,null,null,null,null,null,null,"モバイルソリューション営業統括部　MS営業２部　DC+サポートセンター"]
["※スケジュールの都合上、ご希望期間に対応できない場合や、貸出期間の延長はできない場合があります。",null,null,null,null,null,null,null,null,"TEL：０５７０－６６６－３８８"]
[null,null,null,null,null,null,null,null,null,"メール：dcp-support@seiko-sol.co.jp"]
[]
[]
["【サービスへアクセスするためのリンク】"]
[]
[null,null,null,"以下のリンク先よりDrive Cloud +サービスをご利用ください。"]
[null,null,null,"＜注意＞サービスへのリンクは、管理者と、運転者で異なりますのでご注意ください。"]
[null,null,null,"お気に入りに登録頂くと簡単にDrive Cloud＋へアクセスできます"]
[]
[null,null,null,null,"リンク"]
[null,null,"【管理者用】",null,"https://drive-cloud-plus.com/contineo/webapps/drivecloudplus/orgadmin"]
[null,null,"【運転者用】",null,"https://drive-cloud-plus.com/contineo/webapps/drivecloudplus/menu"]
[]
[]
[]
["【サービスのご利用方法】"]
[]
[null,null,null,"ご利用方法については、別紙「DriveCloud_quickstartguide.pdf」をご参照ください。"]
[null,null,null,"その他、詳細資料は下記URLからダウンロード可能です。"]
[]
[null,null,null,null,"リンク"]
[null,null,"【詳細資料】",null,"https://www.seiko-sol.co.jp/products/drivecloudplus/drivecloudplus_user/"]
[null,null,"上記リンクには、ID・パスワードでログインする必要があります。"]
[null,null,"ID：DC-User　　パスワード：DcUr2102"]
[]
["【ログインＩＤ・パスワード】"]
[]
["No","ドライブレコーダーSN",null,"会社名",null,null,"管理者名",null,"管理者ID","管理者PW","運転者名",null,"運転者ID","運転者PW"]
[1,"xxxxxxxxxx",null,"株式会社○○○○",null,null,"管理者1",null,"XXXXX","XXXXXXX","運転者1",null,"XXXXX","XXXXXXX"]